Organisation Name (A),Department (B),Service Cat Label (C ),Purpose of Spend (D),Expenditure CIPFA Sub Group (E ),Supplier (F),Supplier Reference (G),Pay Date (H),Transaction Number (I),Net Amount (J),Grant to VCSE? (K),Charity Number (L),Card Transaction (M),Irrecoverable VAT (N/A)
Pendle Borough Council,Parks & Recreation Services,Transport Related Expense,Tprt : Repairs : General,3105,FST CONSUMABLES LIMITED,A0000004,20/01/2022,PCO0322483,33.51,N,,N,N
Pendle Borough Council,Parks & Recreation Services,Transport Related Expense,Tprt : Repairs : General,3105,FST CONSUMABLES LIMITED,A0000004,20/01/2022,PCO0322483,41.25,N,,N,N
Pendle Borough Council,Parks & Recreation Services,Transport Related Expense,Tprt : Repairs : General,3105,BALMERS GM LIMITED,A0000198,27/01/2022,PCO0323194,685.52,N,,N,N
Pendle Borough Council,Parks & Recreation Services,Transport Related Expense,Tprt : Repairs : General,3105,BALMERS GM LIMITED,A0000198,27/01/2022,PCO0323194,94.15,N,,N,N
Pendle Borough Council,Parks & Recreation Services,Transport Related Expense,Tprt : Repairs : General,3105,BALMERS GM LIMITED,A0000198,27/01/2022,PCO0323194,71.75,N,,N,N
Pendle Borough Council,Parks & Recreation Services,Transport Related Expense,Tprt : Repairs : General,3105,BALMERS GM LIMITED,A0000198,27/01/2022,PCO0323194,71.75,N,,N,N
Pendle Borough Council,Parks & Recreation Services,Transport Related Expense,Tprt : Repairs : General,3105,BALMERS GM LIMITED,A0000198,27/01/2022,PCO0323194,71.75,N,,N,N
Pendle Borough Council,Parks & Recreation Services,Transport Related Expense,Tprt : Repairs : General,3105,BALMERS GM LIMITED,A0000198,27/01/2022,PCO0323194,71.75,N,,N,N
Pendle Borough Council,Parks & Recreation Services,Premises Related Expense,Grounds : R & M : Day to Day : Routine,2101,BARNES JB LIMITED,A0000202,13/01/2022,PCO0322867,34.75,N,,N,N
Pendle Borough Council,Parks & Recreation Services,Transport Related Expense,Tprt : Repairs : General,3105,BARNES JB LIMITED,A0000202,20/01/2022,PCO0322476,75,N,,N,N
Pendle Borough Council,Parks & Recreation Services,Transport Related Expense,Tprt : Repairs : General,3105,BARNES JB LIMITED,A0000202,27/01/2022,PCO0323191,110,N,,N,N
Pendle Borough Council,Parks & Recreation Services,Transport Related Expense,Tprt : Repairs : General,3105,BARNES JB LIMITED,A0000202,20/01/2022,PCO0322476,128.91,N,,N,N
Pendle Borough Council,Parks & Recreation Services,Supplies and Services,Protective Clothing,4201,BARNES JB LIMITED,A0000202,20/01/2022,PCO0322476,7.5,N,,N,N
Pendle Borough Council,Planning & Building Control,Supplies and Services,Other Expenses,4705,BARROWFORD PARISH COUNCIL,A0000239,13/01/2022,PBC0322956,1399.98,N,,N,N
Pendle Borough Council,Engineering & Special Projects,Supplies and Services,Consultants Fees,4401,BLACKBURN/DARWEN BOROUGH COUNCIL,A0000381,13/01/2022,HED0322893,1276,N,,N,N
Pendle Borough Council,Parks & Recreation Services,Transport Related Expense,Hire of Plant,3502,BOC GASES LTD,A0000386,06/01/2022,PCO0322740,21.7,N,,N,N
Pendle Borough Council,Engineering & Special Projects,Premises Related Expense,Grounds : R & M : Day to Day : Routine,2101,CB EXCAVATORS LTD,A0000396,27/01/2022,HED0323158,2000,N,,N,N
Pendle Borough Council,Engineering & Special Projects,Premises Related Expense,Grounds : R & M : Day to Day : Routine,2101,CB EXCAVATORS LTD,A0000396,27/01/2022,HED0323158,2863,N,,N,N
Pendle Borough Council,Engineering & Special Projects,Premises Related Expense,Grounds : R & M : Day to Day : Routine,2101,CB EXCAVATORS LTD,A0000396,20/01/2022,HED0323014,200,N,,N,N
Pendle Borough Council,Engineering & Special Projects,Capital Costs,Capital : Payments,CD14,CB EXCAVATORS LTD,A0000396,13/01/2022,HED0322883,15850,N,,N,N
Pendle Borough Council,Property Services,Premises Related Expense,Bldgs : R & M : Day To Day,2001,GEORGE BOOCOCK DECORATORS LTD,A0000427,13/01/2022,EST0322935,346,N,,N,N
Pendle Borough Council,Parks & Recreation Services,Supplies and Services,Expenditure : Materials,0002,BARROWFORD SAFE & LOCK & BB LOCKSMITHS,A0000510,20/01/2022,PCO0322478,2.92,N,,N,N
Pendle Borough Council,Parks & Recreation Services,Supplies and Services,Expenditure : Materials,0002,BARROWFORD SAFE & LOCK & BB LOCKSMITHS,A0000510,20/01/2022,PCO0322478,3.33,N,,N,N
Pendle Borough Council,Parks & Recreation Services,Supplies and Services,Expenditure : Materials,0002,BARROWFORD SAFE & LOCK & BB LOCKSMITHS,A0000510,13/01/2022,PCO0322868,61.32,N,,N,N
Pendle Borough Council,Parks & Recreation Services,Supplies and Services,Expenditure : Materials,0002,BARROWFORD SAFE & LOCK & BB LOCKSMITHS,A0000510,20/01/2022,PCO0322478,84,N,,N,N
Pendle Borough Council,Parks & Recreation Services,Premises Related Expense,Bldgs : R & M : Day To Day,2001,BARROWFORD SAFE & LOCK & BB LOCKSMITHS,A0000510,20/01/2022,PCO0322478,35.04,N,,N,N
Pendle Borough Council,Parks & Recreation Services,Transport Related Expense,Tprt : Repairs : General,3105,BARROWFORD SAFE & LOCK & BB LOCKSMITHS,A0000510,20/01/2022,PCO0322478,12.51,N,,N,N
Pendle Borough Council,Parks & Recreation Services,Transport Related Expense,Hire of Plant,3502,R J CLOUGH & SON LTD,A0000567,27/01/2022,PCO0323154,46,N,,N,N
Pendle Borough Council,Parks & Recreation Services,Transport Related Expense,Hire of Plant,3502,R J CLOUGH & SON LTD,A0000567,13/01/2022,PCO0322877,1105,N,,N,N
Pendle Borough Council,Operational Services,Supplies and Services,Protective Clothing,4201,CRAVEN VEHICLE SERVICES LIMITED,A0000572,13/01/2022,OPS0322860,1120,N,,N,N
Pendle Borough Council,Engineering & Special Projects,Supplies and Services,Other Expenses,4705,MARTIN COLLINS JOINERY & GLAZING,A0000623,06/01/2022,HED0322770,494.4,N,,N,N
Pendle Borough Council,Engineering & Special Projects,Transfer Payments,Storage & Homelessness prevention,6104,CAVALIER TAXIS,A0000638,06/01/2022,HED0322749,25,N,,N,N
Pendle Borough Council,Engineering & Special Projects,Premises Related Expense,Grounds : R & M : Day to Day : Routine,2101,ENGINEERING & FOUNDRY SUPPLIES,A0001002,27/01/2022,HED0323160,90.3,N,,N,N
Pendle Borough Council,Parks & Recreation Services,Supplies and Services,Protective Clothing,4201,ENGINEERING & FOUNDRY SUPPLIES,A0001002,27/01/2022,PCO0323192,52,N,,N,N
Pendle Borough Council,Parks & Recreation Services,Supplies and Services,Protective Clothing,4201,ENGINEERING & FOUNDRY SUPPLIES,A0001002,13/01/2022,PCO0322869,61.44,N,,N,N
Pendle Borough Council,Operational Services,Supplies and Services,Protective Clothing,4201,ENGINEERING & FOUNDRY SUPPLIES,A0001002,13/01/2022,OPS0322837,17.59,N,,N,N
Pendle Borough Council,Operational Services,Supplies and Services,Other Expenses,4705,ENGINEERING & FOUNDRY SUPPLIES,A0001002,06/01/2022,OPS0322724,74.52,N,,N,N
Pendle Borough Council,Operational Services,Supplies and Services,Other Expenses,4705,ENGINEERING & FOUNDRY SUPPLIES,A0001002,06/01/2022,OPS0322721,129.66,N,,N,N
Pendle Borough Council,Operational Services,,Stock : Purchases,PJ01,ENGINEERING & FOUNDRY SUPPLIES,A0001002,13/01/2022,OPS4006510,-5.45,N,,N,N
Pendle Borough Council,Operational Services,,Stock : Purchases,PJ01,ENGINEERING & FOUNDRY SUPPLIES,A0001002,06/01/2022,OPS0322247,10.95,N,,N,N
Pendle Borough Council,Operational Services,,Stock : Purchases,PJ01,ENGINEERING & FOUNDRY SUPPLIES,A0001002,20/01/2022,OPS0323001,50.4,N,,N,N
Pendle Borough Council,Operational Services,,Stock : Purchases,PJ01,ENGINEERING & FOUNDRY SUPPLIES,A0001002,27/01/2022,OPS0323180,50.4,N,,N,N
Pendle Borough Council,Operational Services,,Stock : Purchases,PJ01,ENGINEERING & FOUNDRY SUPPLIES,A0001002,20/01/2022,OPS0323001,75,N,,N,N
Pendle Borough Council,Operational Services,,Stock : Purchases,PJ01,ENGINEERING & FOUNDRY SUPPLIES,A0001002,27/01/2022,OPS0323180,75,N,,N,N
Pendle Borough Council,Operational Services,,Stock : Purchases,PJ01,ENGINEERING & FOUNDRY SUPPLIES,A0001002,13/01/2022,OPS0322830,75.95,N,,N,N
Pendle Borough Council,Operational Services,,Stock : Purchases,PJ01,ENGINEERING & FOUNDRY SUPPLIES,A0001002,20/01/2022,OPS0323001,81.9,N,,N,N
Pendle Borough Council,Operational Services,,Stock : Purchases,PJ01,ENGINEERING & FOUNDRY SUPPLIES,A0001002,20/01/2022,OPS0323000,87.48,N,,N,N
Pendle Borough Council,Operational Services,,Stock : Purchases,PJ01,ENGINEERING & FOUNDRY SUPPLIES,A0001002,20/01/2022,OPS0323001,87.95,N,,N,N
Pendle Borough Council,Operational Services,,Stock : Purchases,PJ01,ENGINEERING & FOUNDRY SUPPLIES,A0001002,20/01/2022,OPS0323001,100.8,N,,N,N
Pendle Borough Council,Operational Services,,Stock : Purchases,PJ01,ENGINEERING & FOUNDRY SUPPLIES,A0001002,20/01/2022,OPS0323001,100.8,N,,N,N
Pendle Borough Council,Operational Services,,Stock : Purchases,PJ01,ENGINEERING & FOUNDRY SUPPLIES,A0001002,27/01/2022,OPS0323180,100.8,N,,N,N
Pendle Borough Council,Operational Services,,Stock : Purchases,PJ01,ENGINEERING & FOUNDRY SUPPLIES,A0001002,20/01/2022,OPS0323001,150,N,,N,N
Pendle Borough Council,Operational Services,,Stock : Purchases,PJ01,ENGINEERING & FOUNDRY SUPPLIES,A0001002,27/01/2022,OPS0323180,150,N,,N,N
Pendle Borough Council,Operational Services,Transport Related Expense,Tprt : Repairs : General,3105,FREIGHT TRANSPORT ASSOCIATION,A0001124,20/01/2022,OPS0323011,41.25,N,,N,N
Pendle Borough Council,Parks & Recreation Services,Supplies and Services,Expenditure : Materials,0002,JEWSON LIMITED,A0001323,20/01/2022,PCO0322485,142.8,N,,N,N
Pendle Borough Council,Parks & Recreation Services,Premises Related Expense,Bldgs : R & M : Day To Day,2001,JEWSON LIMITED,A0001323,13/01/2022,PCO0322870,46.25,N,,N,N
Pendle Borough Council,Parks & Recreation Services,Premises Related Expense,Bldgs : R & M : Day To Day,2001,LANLEE SUPPLIES LIMITED,A0001672,27/01/2022,PCO0323148,20.94,N,,N,N
Pendle Borough Council,Parks & Recreation Services,Premises Related Expense,Bldgs : R & M : Day To Day,2001,LANLEE SUPPLIES LIMITED,A0001672,06/01/2022,PCO0322730,1.43,N,,N,N
Pendle Borough Council,Parks & Recreation Services,Premises Related Expense,Bldgs : R & M : Day To Day,2001,LANLEE SUPPLIES LIMITED,A0001672,06/01/2022,PCO0322730,3.11,N,,N,N
Pendle Borough Council,Parks & Recreation Services,Premises Related Expense,Bldgs : R & M : Day To Day,2001,LANLEE SUPPLIES LIMITED,A0001672,06/01/2022,PCO0322730,4.39,N,,N,N
Pendle Borough Council,Parks & Recreation Services,Premises Related Expense,Bldgs : R & M : Day To Day,2001,LANLEE SUPPLIES LIMITED,A0001672,06/01/2022,PCO0322730,16.53,N,,N,N
Pendle Borough Council,Parks & Recreation Services,Premises Related Expense,Grounds : R & M : Day to Day : Routine,2101,LANLEE SUPPLIES LIMITED,A0001672,06/01/2022,PCO0322732,29.95,N,,N,N
Pendle Borough Council,Parks & Recreation Services,Premises Related Expense,Grounds : R & M : Day to Day : Routine,2101,LANLEE SUPPLIES LIMITED,A0001672,06/01/2022,PCO0322731,408.6,N,,N,N
Pendle Borough Council,Parks & Recreation Services,Premises Related Expense,Grounds : R & M : Day to Day : Routine,2101,LANLEE SUPPLIES LIMITED,A0001672,27/01/2022,PCO0323149,10.3,N,,N,N
Pendle Borough Council,Parks & Recreation Services,Transport Related Expense,Tprt : Repairs : General,3105,DICK LEIGH,A0001675,20/01/2022,PCO0322482,65.58,N,,N,N
Pendle Borough Council,Parks & Recreation Services,Transport Related Expense,Tprt : Repairs : General,3105,DICK LEIGH,A0001675,27/01/2022,PCO0323144,41.65,N,,N,N
Pendle Borough Council,Parks & Recreation Services,Transport Related Expense,Tprt : Repairs : General,3105,DICK LEIGH,A0001675,20/01/2022,PCO0322482,184.11,N,,N,N
Pendle Borough Council,Parks & Recreation Services,Supplies and Services,Protective Clothing,4201,DICK LEIGH,A0001675,20/01/2022,PCO0322482,20.47,N,,N,N
Pendle Borough Council,Parks & Recreation Services,Supplies and Services,Protective Clothing,4201,DICK LEIGH,A0001675,20/01/2022,PCO0322482,64.24,N,,N,N
Pendle Borough Council,Engineering & Special Projects,Supplies and Services,Search Fees,4404,LANCASHIRE COUNTY COUNCIL,A0001690,13/01/2022,HED0322856,249,N,,N,N
Pendle Borough Council,Engineering & Special Projects,Capital Costs,Capital : Payments,CD14,LANCASHIRE COUNTY COUNCIL,A0001690,20/01/2022,HED0323013,500,N,,N,N
Pendle Borough Council,Engineering & Special Projects,Capital Costs,Ren Grant : 1996 Act,CH22,LANCASHIRE COUNTY COUNCIL,A0001690,13/01/2022,HED0322843,3174,N,,N,N
Pendle Borough Council,Engineering & Special Projects,Capital Costs,Ren Grant : 1996 Act,CH22,LANCASHIRE COUNTY COUNCIL,A0001690,27/01/2022,HED0323165,3376,N,,N,N
Pendle Borough Council,Engineering & Special Projects,Capital Costs,Ren Grant : 1996 Act,CH22,LANCASHIRE COUNTY COUNCIL,A0001690,13/01/2022,HED0322844,6529,N,,N,N
Pendle Borough Council,Engineering & Special Projects,Capital Costs,Capital : Payments,CD14,LORD STREET CO PRIMARY SCHOOL,A0001702,13/01/2022,HED0322892,1609,N,,N,N
Pendle Borough Council,Property Services,Premises Related Expense,Grounds : R & M : Day to Day : Routine,2101,MONK OF COLNE LTD,A0001828,06/01/2022,EST0322806,5667.18,N,,N,N
Pendle Borough Council,Operational Services,Premises Related Expense,Grounds : R & M : Day to Day : Routine,2101,JOHN MACADAM & SON (RESCUE) LTD,A0001846,27/01/2022,OPS0323130,48,N,,N,N
Pendle Borough Council,Operational Services,Premises Related Expense,Grounds : R & M : Day to Day : Routine,2101,JOHN MACADAM & SON (RESCUE) LTD,A0001846,27/01/2022,OPS0323131,48,N,,N,N
Pendle Borough Council,Operational Services,Premises Related Expense,Grounds : R & M : Day to Day : Routine,2101,JOHN MACADAM & SON (RESCUE) LTD,A0001846,06/01/2022,OPS0322715,120,N,,N,N
Pendle Borough Council,Operational Services,Premises Related Expense,Grounds : R & M : Day to Day : Routine,2101,JOHN MACADAM & SON (RESCUE) LTD,A0001846,06/01/2022,OPS0322716,120,N,,N,N
Pendle Borough Council,Operational Services,Premises Related Expense,Grounds : R & M : Day to Day : Routine,2101,JOHN MACADAM & SON (RESCUE) LTD,A0001846,06/01/2022,OPS0322717,120,N,,N,N
Pendle Borough Council,Operational Services,Premises Related Expense,Grounds : R & M : Day to Day : Routine,2101,JOHN MACADAM & SON (RESCUE) LTD,A0001846,27/01/2022,OPS0323129,120,N,,N,N
Pendle Borough Council,Parks & Recreation Services,Transport Related Expense,Tprt : Repairs : General,3105,JOHN MACADAM & SON (RESCUE) LTD,A0001846,20/01/2022,PCO0322486,860,N,,N,N
Pendle Borough Council,Property Services,Premises Related Expense,Water & Sewerage,2501,WATER PLUS LIMITED,A0001986,20/01/2022,EST0323038,88.84,N,,N,N
Pendle Borough Council,Property Services,Premises Related Expense,Water & Sewerage,2501,WATER PLUS LIMITED,A0001986,06/01/2022,EST0322766,49.68,N,,N,N
Pendle Borough Council,Property Services,Premises Related Expense,Water & Sewerage,2501,WATER PLUS LIMITED,A0001986,13/01/2022,EST4006513,-469.44,N,,N,N
Pendle Borough Council,Property Services,Premises Related Expense,Water & Sewerage,2501,WATER PLUS LIMITED,A0001986,13/01/2022,EST4006511,-127.07,N,,N,N
Pendle Borough Council,Property Services,Premises Related Expense,Water & Sewerage,2501,WATER PLUS LIMITED,A0001986,13/01/2022,EST4006512,-112.46,N,,N,N
Pendle Borough Council,Property Services,Premises Related Expense,Water & Sewerage,2501,WATER PLUS LIMITED,A0001986,13/01/2022,EST0322930,127.07,N,,N,N
Pendle Borough Council,Property Services,Premises Related Expense,Water & Sewerage,2501,WATER PLUS LIMITED,A0001986,13/01/2022,EST0322933,131.01,N,,N,N
Pendle Borough Council,Property Services,Premises Related Expense,Water & Sewerage,2501,WATER PLUS LIMITED,A0001986,13/01/2022,EST0322932,177.76,N,,N,N
Pendle Borough Council,Property Services,Premises Related Expense,Water & Sewerage,2501,WATER PLUS LIMITED,A0001986,13/01/2022,EST0322931,212.94,N,,N,N
Pendle Borough Council,Property Services,Premises Related Expense,Water & Sewerage,2501,WATER PLUS LIMITED,A0001986,06/01/2022,EST0322765,50.53,N,,N,N
Pendle Borough Council,Property Services,Premises Related Expense,Water & Sewerage,2501,WATER PLUS LIMITED,A0001986,20/01/2022,EST0323039,52.21,N,,N,N
Pendle Borough Council,Property Services,Premises Related Expense,Water & Sewerage,2501,WATER PLUS LIMITED,A0001986,06/01/2022,EST0322697,82.92,N,,N,N
Pendle Borough Council,Property Services,Premises Related Expense,Water & Sewerage,2501,WATER PLUS LIMITED,A0001986,27/01/2022,EST0323135,47.92,N,,N,N
Pendle Borough Council,Property Services,Premises Related Expense,Water & Sewerage,2501,WATER PLUS LIMITED,A0001986,13/01/2022,EST0322947,509.12,N,,N,N
Pendle Borough Council,Property Services,Premises Related Expense,Water & Sewerage,2501,WATER PLUS LIMITED,A0001986,06/01/2022,EST0322763,380.04,N,,N,N
Pendle Borough Council,Property Services,Premises Related Expense,Water & Sewerage,2501,WATER PLUS LIMITED,A0001986,20/01/2022,EST4006514,-60,N,,N,N
Pendle Borough Council,Property Services,Premises Related Expense,Water & Sewerage,2501,WATER PLUS LIMITED,A0001986,27/01/2022,EST4006522,-20,N,,N,N
Pendle Borough Council,Property Services,Premises Related Expense,Water & Sewerage,2501,WATER PLUS LIMITED,A0001986,20/01/2022,EST0323036,57.09,N,,N,N
Pendle Borough Council,Property Services,Premises Related Expense,Water & Sewerage,2501,WATER PLUS LIMITED,A0001986,20/01/2022,EST0323037,89.14,N,,N,N
Pendle Borough Council,Property Services,Premises Related Expense,Water & Sewerage,2501,WATER PLUS LIMITED,A0001986,06/01/2022,EST4006505,-168.64,N,,N,N
Pendle Borough Council,Property Services,Premises Related Expense,Water & Sewerage,2501,WATER PLUS LIMITED,A0001986,20/01/2022,EST0323040,28.47,N,,N,N
Pendle Borough Council,Property Services,Premises Related Expense,Water & Sewerage,2501,WATER PLUS LIMITED,A0001986,06/01/2022,EST0322541,41.01,N,,N,N
Pendle Borough Council,Property Services,Premises Related Expense,Water & Sewerage,2501,WATER PLUS LIMITED,A0001986,27/01/2022,EST0323134,1250.71,N,,N,N
Pendle Borough Council,Property Services,Premises Related Expense,Water & Sewerage,2501,WATER PLUS LIMITED,A0001986,06/01/2022,EST0322757,3676.7,N,,N,N
Pendle Borough Council,Property Services,Premises Related Expense,Bldgs : R & M : Day To Day,2001,F NUTTER & SONS,A0002037,20/01/2022,EST0323041,14.16,N,,N,N
Pendle Borough Council,Property Services,Premises Related Expense,Bldgs : R & M : Day To Day,2001,F NUTTER & SONS,A0002037,20/01/2022,EST0323041,260,N,,N,N
Pendle Borough Council,Parks & Recreation Services,Premises Related Expense,Bldgs : R & M : Day To Day,2001,OPTION HYGIENE LIMITED,A0002063,27/01/2022,PCO0323153,7.2,N,,N,N
Pendle Borough Council,Operational Services,Premises Related Expense,Bldgs : R & M : Day To Day,2001,OPTION HYGIENE LIMITED,A0002063,20/01/2022,OPS0322999,14.18,N,,N,N
Pendle Borough Council,Operational Services,,Stock : Purchases,PJ01,OPTION HYGIENE LIMITED,A0002063,06/01/2022,OPS0322720,21.96,N,,N,N
Pendle Borough Council,Operational Services,,Stock : Purchases,PJ01,OPTION HYGIENE LIMITED,A0002063,20/01/2022,OPS0322997,2082.47,N,,N,N
Pendle Borough Council,Operational Services,Premises Related Expense,Bldgs : R & M : Day To Day,2001,POWER PIPES (PENDLE) LIMITED,A0002089,06/01/2022,OPS0322719,9.5,N,,N,N
Pendle Borough Council,Parks & Recreation Services,Transport Related Expense,Tprt : Repairs : General,3105,POWER PIPES (PENDLE) LIMITED,A0002089,20/01/2022,PCO0322488,39.95,N,,N,N
Pendle Borough Council,Operational Services,Transport Related Expense,Tprt : Repairs : General,3105,POWER PIPES (PENDLE) LIMITED,A0002089,13/01/2022,OPS0322835,685,N,,N,N
Pendle Borough Council,Parks & Recreation Services,Transport Related Expense,Tprt : Repairs : General,3105,POWER PIPES (PENDLE) LIMITED,A0002089,13/01/2022,PCO0322871,36.79,N,,N,N
Pendle Borough Council,Engineering & Special Projects,Supplies and Services,Printing & Stationery,4301,ROYAL MAIL GROUP LIMITED,A0002281,13/01/2022,HED0322937,99.89,N,,N,N
Pendle Borough Council,Engineering & Special Projects,Supplies and Services,Printing & Stationery,4301,ROYAL MAIL GROUP LIMITED,A0002281,27/01/2022,HED0323111,119.4,N,,N,N
Pendle Borough Council,Engineering & Special Projects,Supplies and Services,Postages,4501,ROYAL MAIL GROUP LIMITED,A0002281,06/01/2022,HED0322772,73.48,N,,N,N
Pendle Borough Council,Engineering & Special Projects,Supplies and Services,Postages,4501,ROYAL MAIL GROUP LIMITED,A0002281,06/01/2022,HED0322772,7.19,N,,N,N
Pendle Borough Council,Engineering & Special Projects,Supplies and Services,Postages,4501,ROYAL MAIL GROUP LIMITED,A0002281,13/01/2022,HED0322879,14.49,N,,N,N
Pendle Borough Council,Engineering & Special Projects,Supplies and Services,Postages,4501,ROYAL MAIL GROUP LIMITED,A0002281,13/01/2022,HED0322879,169.77,N,,N,N
Pendle Borough Council,Engineering & Special Projects,Supplies and Services,Postages,4501,ROYAL MAIL GROUP LIMITED,A0002281,06/01/2022,HED0322772,240.68,N,,N,N
Pendle Borough Council,Engineering & Special Projects,Supplies and Services,Postages,4501,ROYAL MAIL GROUP LIMITED,A0002281,20/01/2022,HED0322991,645.82,N,,N,N
Pendle Borough Council,Engineering & Special Projects,Supplies and Services,Postages,4501,ROYAL MAIL GROUP LIMITED,A0002281,13/01/2022,HED0322879,8.44,N,,N,N
Pendle Borough Council,Engineering & Special Projects,Supplies and Services,Postages,4501,ROYAL MAIL GROUP LIMITED,A0002281,06/01/2022,HED0322772,68.4,N,,N,N
Pendle Borough Council,Engineering & Special Projects,Supplies and Services,Postages,4501,ROYAL MAIL GROUP LIMITED,A0002281,06/01/2022,HED0322772,5.52,N,,N,N
Pendle Borough Council,Engineering & Special Projects,Supplies and Services,Postages,4501,ROYAL MAIL GROUP LIMITED,A0002281,13/01/2022,HED0322879,7.12,N,,N,N
Pendle Borough Council,Engineering & Special Projects,Supplies and Services,Postages,4501,ROYAL MAIL GROUP LIMITED,A0002281,13/01/2022,HED0322879,0.88,N,,N,N
Pendle Borough Council,Engineering & Special Projects,Supplies and Services,Postages,4501,ROYAL MAIL GROUP LIMITED,A0002281,06/01/2022,HED0322772,2.2,N,,N,N
Pendle Borough Council,Engineering & Special Projects,Supplies and Services,Postages,4501,ROYAL MAIL GROUP LIMITED,A0002281,13/01/2022,HED0322879,24.89,N,,N,N
Pendle Borough Council,Engineering & Special Projects,Supplies and Services,Postages,4501,ROYAL MAIL GROUP LIMITED,A0002281,06/01/2022,HED0322772,49.52,N,,N,N
Pendle Borough Council,Engineering & Special Projects,Supplies and Services,Postages,4501,ROYAL MAIL GROUP LIMITED,A0002281,06/01/2022,HED0322772,75.73,N,,N,N
Pendle Borough Council,Engineering & Special Projects,Supplies and Services,Postages,4501,ROYAL MAIL GROUP LIMITED,A0002281,06/01/2022,HED0322772,55.3,N,,N,N
Pendle Borough Council,Engineering & Special Projects,Supplies and Services,Postages,4501,ROYAL MAIL GROUP LIMITED,A0002281,13/01/2022,HED0322879,71.16,N,,N,N
Pendle Borough Council,Engineering & Special Projects,Supplies and Services,Postages,4501,ROYAL MAIL GROUP LIMITED,A0002281,13/01/2022,HED0322879,95.86,N,,N,N
Pendle Borough Council,Engineering & Special Projects,Supplies and Services,Postages,4501,ROYAL MAIL GROUP LIMITED,A0002281,06/01/2022,HED0322772,170.28,N,,N,N
Pendle Borough Council,Engineering & Special Projects,Supplies and Services,Postages,4501,ROYAL MAIL GROUP LIMITED,A0002281,06/01/2022,HED0322772,2.17,N,,N,N
Pendle Borough Council,Engineering & Special Projects,Supplies and Services,Postages,4501,ROYAL MAIL GROUP LIMITED,A0002281,13/01/2022,HED0322879,23.74,N,,N,N
Pendle Borough Council,Engineering & Special Projects,Supplies and Services,Postages,4501,ROYAL MAIL GROUP LIMITED,A0002281,06/01/2022,HED0322772,38.15,N,,N,N
Pendle Borough Council,Engineering & Special Projects,Supplies and Services,Postages,4501,ROYAL MAIL GROUP LIMITED,A0002281,13/01/2022,HED0322879,26.04,N,,N,N
Pendle Borough Council,Engineering & Special Projects,Supplies and Services,Postages,4501,ROYAL MAIL GROUP LIMITED,A0002281,06/01/2022,HED0322772,39.3,N,,N,N
Pendle Borough Council,Engineering & Special Projects,Supplies and Services,Postages,4501,ROYAL MAIL GROUP LIMITED,A0002281,13/01/2022,HED0322879,419.21,N,,N,N
Pendle Borough Council,Engineering & Special Projects,Supplies and Services,Postages,4501,ROYAL MAIL GROUP LIMITED,A0002281,06/01/2022,HED0322772,476.91,N,,N,N
Pendle Borough Council,Engineering & Special Projects,Supplies and Services,Postages,4501,ROYAL MAIL GROUP LIMITED,A0002281,13/01/2022,HED0322879,3.68,N,,N,N
Pendle Borough Council,Engineering & Special Projects,Supplies and Services,Postages,4501,ROYAL MAIL GROUP LIMITED,A0002281,06/01/2022,HED0322772,60.4,N,,N,N
Pendle Borough Council,Engineering & Special Projects,Supplies and Services,Postages,4501,ROYAL MAIL GROUP LIMITED,A0002281,13/01/2022,HED0322879,137.83,N,,N,N
Pendle Borough Council,Operational Services,Supplies and Services,Sub-Contractors,4007,ROSSENDALE PET CREMATORIUM,A0002345,13/01/2022,OPS0322862,82.2,N,,N,N
Pendle Borough Council,Operational Services,Agency Staff,Emp : Agency Wages,1004,STANLEY BROTHERS (TIPPERS) LTD,A0002422,27/01/2022,OPS0323128,128,N,,N,N
Pendle Borough Council,Operational Services,Transport Related Expense,Tprt : Annual Hire Charge,3601,STANLEY BROTHERS (TIPPERS) LTD,A0002422,27/01/2022,OPS0323179,2090,N,,N,N
Pendle Borough Council,Operational Services,Transport Related Expense,Tprt : Annual Hire Charge,3601,STANLEY BROTHERS (TIPPERS) LTD,A0002422,13/01/2022,OPS0322838,2420,N,,N,N
Pendle Borough Council,Engineering & Special Projects,Supplies and Services,EFM : Other Equipment,4003,STANLEY HOUSE VETERINARY GROUP,A0002423,13/01/2022,HED0322936,551,N,,N,N
Pendle Borough Council,Parks & Recreation Services,,Fees Income : VATable,9202,STEVENSON MEMORIALS,A0002426,06/01/2022,PCO0322743,162.5,N,,N,N
Pendle Borough Council,Property Services,Capital Costs,Capital : Payments,CD14,STONE OAK LTD,A0002530,13/01/2022,EST0322946,706,N,,N,N
Pendle Borough Council,Parks & Recreation Services,Premises Related Expense,Grounds : R & M : Day to Day : Routine,2101,ROBERTSON MEMORIALS,A0002590,27/01/2022,PCO0323195,54,N,,N,N
Pendle Borough Council,Engineering & Special Projects,Premises Related Expense,Bldgs : R & M : Day To Day,2001,T & F STEEL DESIGNS LTD,A0002627,13/01/2022,HED0322881,80,N,,N,N
Pendle Borough Council,Engineering & Special Projects,Premises Related Expense,Bldgs : R & M : Day To Day,2001,T & F STEEL DESIGNS LTD,A0002627,13/01/2022,HED0322880,390,N,,N,N
Pendle Borough Council,Engineering & Special Projects,,Paid in the Year,PD03,TRISTAR PRINTERS LTD,A0002731,06/01/2022,HED0322756,156,N,,N,N
Pendle Borough Council,Engineering & Special Projects,Supplies and Services,Grant Funding,4737,BUILDING BRIDGES PENDLE,A0005524,06/01/2022,HED0322790,7500,N,1144741,N,N
Pendle Borough Council,Parks & Recreation Services,Transport Related Expense,Diesel Oil,3202,CERTAS ENERGY UK T/A TOWNSON BROS,A0005683,20/01/2022,PCO0322480,2350,N,,N,N
Pendle Borough Council,Parks & Recreation Services,Transport Related Expense,Tprt : Repairs : General,3105,F G ROWLAND LIMITED,A0006489,06/01/2022,PCO0322741,744,N,,N,N
Pendle Borough Council,Engineering & Special Projects,Indirect Employee Expenses,Staff Refreshments,1261,PHILIP SANDERSON,A0006611,13/01/2022,HED0322944,18.94,N,,N,N
Pendle Borough Council,Engineering & Special Projects,Supplies and Services,Hospitality,4611,PHILIP SANDERSON,A0006611,13/01/2022,HED0322944,18.94,N,,N,N
Pendle Borough Council,Engineering & Special Projects,Indirect Employee Expenses,Emp : Practising Certificates,1201,CILEX  REGULATION LIMITED,A0007913,13/01/2022,HED0322855,204,N,,N,N
Pendle Borough Council,Engineering & Special Projects,Indirect Employee Expenses,Emp : Practising Certificates,1201,CILEX  REGULATION LIMITED,A0007913,20/01/2022,HED0322990,240,N,,N,N
Pendle Borough Council,Operational Services,Supplies and Services,Protective Clothing,4201,LONSDALE ACCIDENT REPAIR CENTRE LTD,A0009364,13/01/2022,OPS0322648,1000,N,,N,N
Pendle Borough Council,Property Services,Indirect Employee Expenses,Staff Refreshments,1261,VENDA VALET (MACHINES) LTD,A0009649,06/01/2022,EST4006475,-21.67,N,,N,N
Pendle Borough Council,Property Services,Indirect Employee Expenses,Staff Refreshments,1261,VENDA VALET (MACHINES) LTD,A0009649,06/01/2022,EST0322767,65,N,,N,N
Pendle Borough Council,Engineering & Special Projects,Supplies and Services,Grant Funding,4737,COLNE OPEN DOOR CENTRE,A0009836,06/01/2022,HED0322792,7500,N,1121144,N,N
Pendle Borough Council,Engineering & Special Projects,Supplies and Services,Meeting Expenses,4610,PENDLE LEISURE LIMITED,A0012961,27/01/2022,HED4006523,-65,N,XR43029,N,N
Pendle Borough Council,Engineering & Special Projects,Supplies and Services,Meeting Expenses,4610,PENDLE LEISURE LIMITED,A0012961,27/01/2022,HED0323171,195,N,XR43029,N,N
Pendle Borough Council,Engineering & Special Projects,Supplies and Services,Mayoral Expenses,4614,PENDLE LEISURE LIMITED,A0012961,20/01/2022,HED0322987,129.6,N,XR43029,N,N
Pendle Borough Council,Engineering & Special Projects,Supplies and Services,Children`s holiday activities,4716,PENDLE LEISURE LIMITED,A0012961,20/01/2022,HED0323015,2490,N,XR43029,N,N
Pendle Borough Council,Operational Services,Supplies and Services,Sub-Contractors,4007,ORCHARD RECYCLING SERVICE,A0015803,06/01/2022,OPS0322718,2339.2,N,,N,N
Pendle Borough Council,Operational Services,Supplies and Services,Sub-Contractors,4007,ORCHARD RECYCLING SERVICE,A0015803,27/01/2022,OPS0323181,2356.2,N,,N,N
Pendle Borough Council,Operational Services,Supplies and Services,Sub-Contractors,4007,ORCHARD RECYCLING SERVICE,A0015803,13/01/2022,OPS0322833,2521,N,,N,N
Pendle Borough Council,Operational Services,Supplies and Services,Sub-Contractors,4007,ORCHARD RECYCLING SERVICE,A0015803,20/01/2022,OPS0322993,2541,N,,N,N
Pendle Borough Council,Operational Services,Supplies and Services,Miscellaneous : Other,4707,ORCHARD RECYCLING SERVICE,A0015803,27/01/2022,OPS0323181,128.25,N,,N,N
Pendle Borough Council,Operational Services,Supplies and Services,Miscellaneous : Other,4707,ORCHARD RECYCLING SERVICE,A0015803,20/01/2022,OPS0322993,170,N,,N,N
Pendle Borough Council,Operational Services,Agency Costs,Fast Action Response,5009,ORCHARD RECYCLING SERVICE,A0015803,27/01/2022,OPS0323181,128.25,N,,N,N
Pendle Borough Council,Operational Services,Agency Costs,Fast Action Response,5009,ORCHARD RECYCLING SERVICE,A0015803,20/01/2022,OPS0322993,170,N,,N,N
Pendle Borough Council,Engineering & Special Projects,Capital Costs,Ren Grant : 1996 Act,CH22,STANNAH LIFT SERVICES LTD,A0021089,13/01/2022,HED0322854,2920,N,,N,N
Pendle Borough Council,Engineering & Special Projects,Capital Costs,Ren Grant : 1996 Act,CH22,STANNAH LIFT SERVICES LTD,A0021089,27/01/2022,HED0323164,2956,N,,N,N
Pendle Borough Council,Engineering & Special Projects,Capital Costs,Ren Grant : 1996 Act,CH22,STANNAH LIFT SERVICES LTD,A0021089,20/01/2022,HED0322985,3749,N,,N,N
Pendle Borough Council,Operational Services,Supplies and Services,Sub-Contractors,4007,ASPEN VALLEY KENNELS & CATTERY,A0022106,13/01/2022,OPS0322839,685,N,,N,N
Pendle Borough Council,Operational Services,Supplies and Services,Other Expenses,4705,ASPEN VALLEY KENNELS & CATTERY,A0022106,13/01/2022,OPS0322839,753.6,N,,N,N
Pendle Borough Council,Planning & Building Control,Supplies and Services,Printing & Stationery,4301,MICHAEL TOMS STATIONERS LTD,A0023191,27/01/2022,PBC0323124,37.49,N,,N,N
Pendle Borough Council,Engineering & Special Projects,Supplies and Services,Insurances,4701,ZURICH MUNICIPAL,A0026408,20/01/2022,HED0323047,477.42,N,,N,N
Pendle Borough Council,Property Services,Premises Related Expense,Service Charge,2702,BARNFIELD INVESTMENT PROPERTIES LTD,A0026595,13/01/2022,EST0322926,2249.91,N,,N,N
Pendle Borough Council,Engineering & Special Projects,Supplies and Services,Printing & Stationery,4301,CIVICA ELECTION SERVICES,A0041321,13/01/2022,HED0322846,384.42,N,,N,N
Pendle Borough Council,Engineering & Special Projects,Supplies and Services,Postages,4501,CIVICA ELECTION SERVICES,A0041321,13/01/2022,HED0322846,384.42,N,,N,N
Pendle Borough Council,Property Services,,Personnel : Refundable Rental Deposits,B622,COUNCIL FOR VOLUNTARY SERVICE,A0042503,27/01/2022,EST0323133,400,N,1062446,N,N
Pendle Borough Council,Parks & Recreation Services,Premises Related Expense,Grounds : R & M : Day to Day : Routine,2101,C & R WALNE ENGRAVERS,A0042734,06/01/2022,PCO0322729,36,N,,N,N
Pendle Borough Council,Parks & Recreation Services,Premises Related Expense,Grounds : R & M : Day to Day : Routine,2101,GREENVALE PRODUCTS LIMITED,A0043407,27/01/2022,PCO0323146,50,N,,N,N
Pendle Borough Council,Property Services,Premises Related Expense,Rents,2301,MORGOED ESTATES LIMITED,A0043862,13/01/2022,EST0322934,142.72,N,,N,N
Pendle Borough Council,Operational Services,Supplies and Services,Sub-Contractors,4007,S M SHEPHERD BUILDING CONTRACTORS,A0044037,13/01/2022,OPS0322842,170,N,,N,N
Pendle Borough Council,Operational Services,Supplies and Services,Sub-Contractors,4007,S M SHEPHERD BUILDING CONTRACTORS,A0044037,13/01/2022,OPS0322842,170,N,,N,N
Pendle Borough Council,Operational Services,Supplies and Services,Sub-Contractors,4007,S M SHEPHERD BUILDING CONTRACTORS,A0044037,20/01/2022,OPS0323010,180,N,,N,N
Pendle Borough Council,Operational Services,Supplies and Services,Sub-Contractors,4007,S M SHEPHERD BUILDING CONTRACTORS,A0044037,20/01/2022,OPS0323010,180,N,,N,N
Pendle Borough Council,Property Services,Premises Related Expense,Electricity,2203,E.ON UK PLC,A0044040,20/01/2022,EST0323028,-17.92,N,,N,N
Pendle Borough Council,Property Services,Premises Related Expense,Electricity,2203,E.ON UK PLC,A0044040,13/01/2022,EST0322904,17.92,N,,N,N
Pendle Borough Council,Property Services,Premises Related Expense,Electricity,2203,E.ON UK PLC,A0044040,20/01/2022,EST0323028,393.03,N,,N,N
Pendle Borough Council,Engineering & Special Projects,Supplies and Services,Children`s holiday activities,4716,BODIES IN MOTION,A0045266,27/01/2022,HED0323121,2044,N,,N,N
Pendle Borough Council,Engineering & Special Projects,Supplies and Services,Mayoral Expenses,4614,DIANES CATERING,A0045900,13/01/2022,HED0322857,766.67,N,,N,N
Pendle Borough Council,Democratic & Legal Services,Indirect Employee Expenses,Emp : Practising Certificates,1201,BARCLAYCARD COMMERCIAL,A0045954,13/01/2022,DAL0322955,306,N,,N,N
Pendle Borough Council,Financial Services,Transfer Payments,Accommodation ,6103,BARCLAYCARD COMMERCIAL,A0045954,22/01/2022,AAS0323071,-784.86,N,,N,N
Pendle Borough Council,Financial Services,Transfer Payments,Accommodation ,6103,BARCLAYCARD COMMERCIAL,A0045954,22/01/2022,AAS0323071,0.81,N,,N,N
Pendle Borough Council,Financial Services,Transfer Payments,Accommodation ,6103,BARCLAYCARD COMMERCIAL,A0045954,22/01/2022,AAS0323071,0.86,N,,N,N
Pendle Borough Council,Financial Services,Transfer Payments,Accommodation ,6103,BARCLAYCARD COMMERCIAL,A0045954,22/01/2022,AAS0323071,2.83,N,,N,N
Pendle Borough Council,Financial Services,Transfer Payments,Accommodation ,6103,BARCLAYCARD COMMERCIAL,A0045954,22/01/2022,AAS0323071,3.19,N,,N,N
Pendle Borough Council,Financial Services,Transfer Payments,Accommodation ,6103,BARCLAYCARD COMMERCIAL,A0045954,22/01/2022,AAS0323071,3.29,N,,N,N
Pendle Borough Council,Financial Services,Transfer Payments,Accommodation ,6103,BARCLAYCARD COMMERCIAL,A0045954,22/01/2022,AAS0323071,3.64,N,,N,N
Pendle Borough Council,Financial Services,Transfer Payments,Accommodation ,6103,BARCLAYCARD COMMERCIAL,A0045954,22/01/2022,AAS0323071,5.59,N,,N,N
Pendle Borough Council,Financial Services,Transfer Payments,Accommodation ,6103,BARCLAYCARD COMMERCIAL,A0045954,22/01/2022,AAS0323071,7.03,N,,N,N
Pendle Borough Council,Financial Services,Transfer Payments,Accommodation ,6103,BARCLAYCARD COMMERCIAL,A0045954,22/01/2022,AAS0323071,10.58,N,,N,N
Pendle Borough Council,Financial Services,Transfer Payments,Accommodation ,6103,BARCLAYCARD COMMERCIAL,A0045954,22/01/2022,AAS0323071,10.63,N,,N,N
Pendle Borough Council,Financial Services,Transfer Payments,Accommodation ,6103,BARCLAYCARD COMMERCIAL,A0045954,22/01/2022,AAS0323071,11.18,N,,N,N
Pendle Borough Council,Financial Services,Transfer Payments,Accommodation ,6103,BARCLAYCARD COMMERCIAL,A0045954,22/01/2022,AAS0323071,11.46,N,,N,N
Pendle Borough Council,Financial Services,Transfer Payments,Accommodation ,6103,BARCLAYCARD COMMERCIAL,A0045954,22/01/2022,AAS0323071,13.01,N,,N,N
Pendle Borough Council,Financial Services,Transfer Payments,Accommodation ,6103,BARCLAYCARD COMMERCIAL,A0045954,22/01/2022,AAS0323071,13.08,N,,N,N
Pendle Borough Council,Financial Services,Transfer Payments,Accommodation ,6103,BARCLAYCARD COMMERCIAL,A0045954,22/01/2022,AAS0323071,17.21,N,,N,N
Pendle Borough Council,Financial Services,Transfer Payments,Accommodation ,6103,BARCLAYCARD COMMERCIAL,A0045954,22/01/2022,AAS0323071,18.59,N,,N,N
Pendle Borough Council,Financial Services,Transfer Payments,Accommodation ,6103,BARCLAYCARD COMMERCIAL,A0045954,22/01/2022,AAS0323071,20.65,N,,N,N
Pendle Borough Council,Financial Services,Transfer Payments,Accommodation ,6103,BARCLAYCARD COMMERCIAL,A0045954,22/01/2022,AAS0323071,43.55,N,,N,N
Pendle Borough Council,Financial Services,Transfer Payments,Accommodation ,6103,BARCLAYCARD COMMERCIAL,A0045954,22/01/2022,AAS0323071,46.21,N,,N,N
Pendle Borough Council,Financial Services,Transfer Payments,Accommodation ,6103,BARCLAYCARD COMMERCIAL,A0045954,22/01/2022,AAS0323071,46.22,N,,N,N
Pendle Borough Council,Financial Services,Transfer Payments,Accommodation ,6103,BARCLAYCARD COMMERCIAL,A0045954,22/01/2022,AAS0323071,50.75,N,,N,N
Pendle Borough Council,Financial Services,Transfer Payments,Accommodation ,6103,BARCLAYCARD COMMERCIAL,A0045954,22/01/2022,AAS0323071,70.66,N,,N,N
Pendle Borough Council,Financial Services,Transfer Payments,Accommodation ,6103,BARCLAYCARD COMMERCIAL,A0045954,22/01/2022,AAS0323071,103.09,N,,N,N
Pendle Borough Council,Financial Services,Transfer Payments,Accommodation ,6103,BARCLAYCARD COMMERCIAL,A0045954,22/01/2022,AAS0323071,110.25,N,,N,N
Pendle Borough Council,Financial Services,Transfer Payments,Accommodation ,6103,BARCLAYCARD COMMERCIAL,A0045954,22/01/2022,AAS0323071,151.06,N,,N,N
Pendle Borough Council,Financial Services,Transfer Payments,Accommodation ,6103,BARCLAYCARD COMMERCIAL,A0045954,22/01/2022,AAS0323071,159.09,N,,N,N
Pendle Borough Council,Financial Services,Transfer Payments,Accommodation ,6103,BARCLAYCARD COMMERCIAL,A0045954,22/01/2022,AAS0323071,170.62,N,,N,N
Pendle Borough Council,Financial Services,Transfer Payments,Accommodation ,6103,BARCLAYCARD COMMERCIAL,A0045954,22/01/2022,AAS0323071,175.99,N,,N,N
Pendle Borough Council,Financial Services,Transfer Payments,Accommodation ,6103,BARCLAYCARD COMMERCIAL,A0045954,22/01/2022,AAS0323071,194.62,N,,N,N
Pendle Borough Council,Financial Services,Transfer Payments,Accommodation ,6103,BARCLAYCARD COMMERCIAL,A0045954,22/01/2022,AAS0323071,203.51,N,,N,N
Pendle Borough Council,Financial Services,Transfer Payments,Accommodation ,6103,BARCLAYCARD COMMERCIAL,A0045954,22/01/2022,AAS0323071,298.61,N,,N,N
Pendle Borough Council,Financial Services,Transfer Payments,Accommodation ,6103,BARCLAYCARD COMMERCIAL,A0045954,22/01/2022,AAS0323071,374.17,N,,N,N
Pendle Borough Council,Financial Services,Transfer Payments,Accommodation ,6103,BARCLAYCARD COMMERCIAL,A0045954,22/01/2022,AAS0323071,447.93,N,,N,N
Pendle Borough Council,Financial Services,Transfer Payments,Accommodation ,6103,BARCLAYCARD COMMERCIAL,A0045954,22/01/2022,AAS0323071,459.49,N,,N,N
Pendle Borough Council,Financial Services,Transfer Payments,Accommodation ,6103,BARCLAYCARD COMMERCIAL,A0045954,22/01/2022,AAS0323071,564.35,N,,N,N
Pendle Borough Council,Financial Services,Transfer Payments,Accommodation ,6103,BARCLAYCARD COMMERCIAL,A0045954,22/01/2022,AAS0323071,596.36,N,,N,N
Pendle Borough Council,Financial Services,Transfer Payments,Accommodation ,6103,BARCLAYCARD COMMERCIAL,A0045954,22/01/2022,AAS0323071,694.11,N,,N,N
Pendle Borough Council,Financial Services,Transfer Payments,Accommodation ,6103,BARCLAYCARD COMMERCIAL,A0045954,22/01/2022,AAS0323071,697.63,N,,N,N
Pendle Borough Council,Operational Services,Premises Related Expense,Bldgs : R & M : Day To Day,2001,ROSSENDALE VULCANISING (SALES LTD),A0051239,13/01/2022,OPS0322863,65,N,,N,N
Pendle Borough Council,Financial Services,Premises Related Expense,Rents,2301,LIBERATA UK LTD,A0051618,20/01/2022,AAS4006515,-1549.82,N,,N,N
Pendle Borough Council,Financial Services,Premises Related Expense,Rents,2301,LIBERATA UK LTD,A0051618,20/01/2022,AAS0323060,1470.3,N,,N,N
Pendle Borough Council,Financial Services,Premises Related Expense,Rents,2301,LIBERATA UK LTD,A0051618,20/01/2022,AAS0323059,3410.39,N,,N,N
Pendle Borough Council,Operational Services,Supplies and Services,Miscellaneous : Other,4707,LIBERATA UK LTD,A0051618,27/01/2022,OPS0323178,2349.47,N,,N,N
Pendle Borough Council,Financial Services,Agency Costs,Liberata,5301,LIBERATA UK LTD,A0051618,20/01/2022,AAS0323061,1188,N,,N,N
Pendle Borough Council,Financial Services,Agency Costs,Liberata,5301,LIBERATA UK LTD,A0051618,13/01/2022,AAS0322961,3762.66,N,,N,N
Pendle Borough Council,Financial Services,Agency Costs,#N/A,5303,LIBERATA UK LTD,A0051618,14/01/2022,AAS0323543,6666.67,N,,N,N
Pendle Borough Council,Financial Services,Agency Costs,#N/A,5303,LIBERATA UK LTD,A0051618,14/01/2022,AAS0323543,31805.19,N,,N,N
Pendle Borough Council,Financial Services,Agency Costs,#N/A,5303,LIBERATA UK LTD,A0051618,14/01/2022,AAS0323543,28189.74,N,,N,N
Pendle Borough Council,Financial Services,Agency Costs,#N/A,5303,LIBERATA UK LTD,A0051618,14/01/2022,AAS0323543,81006.65,N,,N,N
Pendle Borough Council,Financial Services,Agency Costs,#N/A,5303,LIBERATA UK LTD,A0051618,14/01/2022,AAS0323543,55872.47,N,,N,N
Pendle Borough Council,Financial Services,Agency Costs,#N/A,5303,LIBERATA UK LTD,A0051618,14/01/2022,AAS0323543,82761.12,N,,N,N
Pendle Borough Council,Financial Services,Agency Costs,#N/A,5303,LIBERATA UK LTD,A0051618,14/01/2022,AAS0323543,125118.52,N,,N,N
Pendle Borough Council,Property Services,Premises Related Expense,Electricity,2203,SOUTHERN ELECTRIC,A0051726,13/01/2022,EST0322901,40.45,N,,N,N
Pendle Borough Council,Property Services,Premises Related Expense,Electricity,2203,SOUTHERN ELECTRIC,A0051726,13/01/2022,EST0322903,242.49,N,,N,N
Pendle Borough Council,Human Resources,Supplies and Services,Other Expenses,4705,FIDELITI LIMITED,A0052058,27/01/2022,PER0323073,2.7,N,,N,N
Pendle Borough Council,Parks & Recreation Services,Premises Related Expense,Grounds : R & M : Day to Day : Routine,2101,ARCOL ENGINEERING LTD,A0052060,13/01/2022,PCO0322866,90,N,,N,N
Pendle Borough Council,Parks & Recreation Services,Premises Related Expense,Grounds : R & M : Day to Day : Routine,2101,ARCOL ENGINEERING LTD,A0052060,06/01/2022,PCO0322727,585,N,,N,N
Pendle Borough Council,Parks & Recreation Services,Transport Related Expense,Tprt : Repairs : General,3105,ARCOL ENGINEERING LTD,A0052060,06/01/2022,PCO0322726,90,N,,N,N
Pendle Borough Council,Property Services,Indirect Employee Expenses,Staff Refreshments,1261,SIEMENS FINANCIAL SERVICES LIMITED,A0054268,06/01/2022,EST0322769,260,N,,N,N
Pendle Borough Council,Human Resources,Supplies and Services,EFM : Office and computer equipment,4002,THE PLAY INSPECTION COMPANY LTD,A0054674,20/01/2022,PER0322977,475,N,,N,N
Pendle Borough Council,Human Resources,Supplies and Services,EFM : Office and computer equipment,4002,THE PLAY INSPECTION COMPANY LTD,A0054674,20/01/2022,PER0322976,1035,N,,N,N
Pendle Borough Council,Engineering & Special Projects,Supplies and Services,Tests & Inspection Fees,4409,UNITED UTILITIES PROPERTY SOLUTIONS LTD,A0055020,20/01/2022,HED0323018,230.91,N,,N,N
Pendle Borough Council,Parks & Recreation Services,Premises Related Expense,Grounds : R & M : Day to Day : Routine,2101,A BINNS & CO,A0057121,06/01/2022,PCO0322725,650,N,,N,N
Pendle Borough Council,Parks & Recreation Services,Premises Related Expense,Grounds : R & M : Day to Day : Routine,2101,A BINNS & CO,A0057121,27/01/2022,PCO0323190,3200,N,,N,N
Pendle Borough Council,Parks & Recreation Services,Premises Related Expense,Grounds : R & M : Day to Day : Routine,2101,A BINNS & CO,A0057121,06/01/2022,PCO0322725,120,N,,N,N
Pendle Borough Council,Parks & Recreation Services,Premises Related Expense,Grounds : R & M : Day to Day : Routine,2101,A BINNS & CO,A0057121,06/01/2022,PCO0322725,650,N,,N,N
Pendle Borough Council,Parks & Recreation Services,Premises Related Expense,Grounds : R & M : Day to Day : Routine,2101,A BINNS & CO,A0057121,06/01/2022,PCO0322725,3400,N,,N,N
Pendle Borough Council,Property Services,Premises Related Expense,Gas,2202,BRITISH GAS,A0057202,13/01/2022,EST0322895,14.66,N,,N,N
Pendle Borough Council,Engineering & Special Projects,Capital Financing Costs,Lease costs:Computer (Orchard),8204,CIVICA UK LIMITED,A0057596,06/01/2022,HED0322788,4320,N,,N,N
Pendle Borough Council,Planning & Building Control,,Other Income : Non-VATable,9303,REDACT - PERSONAL DATA,A0058599,27/01/2022,PBC0323072,88.3,N,,N,N
Pendle Borough Council,Operational Services,Transport Related Expense,Tprt : Repairs : General,3105,UNITED UTILITIES,A0059246,13/01/2022,OPS0322861,21.32,N,,N,N
Pendle Borough Council,Operational Services,Transport Related Expense,Tprt : Repairs : General,3105,UNITED UTILITIES,A0059246,13/01/2022,OPS0322861,21.32,N,,N,N
Pendle Borough Council,Engineering & Special Projects,Agency Costs,Lancashire C C,5102,NSL LIMITED,A0059256,20/01/2022,HED0323048,2001.43,N,,N,N
Pendle Borough Council,Engineering & Special Projects,Supplies and Services,Adverts : Statutory Notice,4702,JPIMEDIA PUBLISHING LIMITED,A0059640,20/01/2022,HED0322992,631.8,N,,N,N
Pendle Borough Council,Engineering & Special Projects,Supplies and Services,Adverts : Statutory Notice,4702,JPIMEDIA PUBLISHING LIMITED,A0059640,06/01/2022,HED0322774,267.3,N,,N,N
Pendle Borough Council,Engineering & Special Projects,Supplies and Services,Adverts : Statutory Notice,4702,JPIMEDIA PUBLISHING LIMITED,A0059640,06/01/2022,HED0322775,267.3,N,,N,N
Pendle Borough Council,Engineering & Special Projects,Supplies and Services,Adverts : Statutory Notice,4702,JPIMEDIA PUBLISHING LIMITED,A0059640,27/01/2022,HED0323110,267.3,N,,N,N
Pendle Borough Council,Engineering & Special Projects,,Fees Income : Non-VATable,9302,JPIMEDIA PUBLISHING LIMITED,A0059640,27/01/2022,HED0323109,194.4,N,,N,N
Pendle Borough Council,Engineering & Special Projects,Transfer Payments,Accommodation ,6103,HILL VIEW (PRIVATE) HOTEL,A0059754,06/01/2022,HED0322750,13075,N,,N,N
Pendle Borough Council,Operational Services,Capital Costs,Capital : Payments,CD14,CONTAINER CARE SOLUTIONS LIMITED,A0061112,27/01/2022,OPS0323185,600,N,,N,N
Pendle Borough Council,Operational Services,Capital Costs,Capital : Payments,CD14,CONTAINER CARE SOLUTIONS LIMITED,A0061112,27/01/2022,OPS0323185,1280,N,,N,N
Pendle Borough Council,Operational Services,Capital Costs,Capital : Payments,CD14,CONTAINER CARE SOLUTIONS LIMITED,A0061112,27/01/2022,OPS0323185,1800,N,,N,N
Pendle Borough Council,Operational Services,Capital Costs,Capital : Payments,CD14,CONTAINER CARE SOLUTIONS LIMITED,A0061112,27/01/2022,OPS0323185,2890,N,,N,N
Pendle Borough Council,Operational Services,Capital Costs,Capital : Payments,CD14,CONTAINER CARE SOLUTIONS LIMITED,A0061112,27/01/2022,OPS0323185,3200,N,,N,N
Pendle Borough Council,Operational Services,Capital Costs,Capital : Payments,CD14,CONTAINER CARE SOLUTIONS LIMITED,A0061112,27/01/2022,OPS0323184,9000,N,,N,N
Pendle Borough Council,Engineering & Special Projects,Supplies and Services,Mayoral Expenses,4614,DAISY CHAIN (BURNLEY)  LIMITED,A0061684,20/01/2022,HED0322988,400,N,,N,N
Pendle Borough Council,Engineering & Special Projects,Supplies and Services,Other Expenses,4705,TRAWDEN FOREST PARISH COUNCIL,A0062286,13/01/2022,HED0322941,1000,N,,N,N
Pendle Borough Council,Parks & Recreation Services,Premises Related Expense,Grounds : R & M : Day to Day : Routine,2101,BOUNCEBACK SAFETY SERVICES LTD,A0063002,27/01/2022,PCO0323143,892,N,,N,N
Pendle Borough Council,Operational Services,Premises Related Expense,Bldgs : R & M : Day To Day,2001,NORTH WEST TRADING COMPANY,A0063527,06/01/2022,OPS0322722,108.38,N,,N,N
Pendle Borough Council,Operational Services,Premises Related Expense,Bldgs : R & M : Day To Day,2001,NORTH WEST TRADING COMPANY,A0063527,13/01/2022,OPS0322841,181.09,N,,N,N
Pendle Borough Council,Operational Services,Premises Related Expense,Bldgs : R & M : Day To Day,2001,NORTH WEST TRADING COMPANY,A0063527,06/01/2022,OPS0322723,587.75,N,,N,N
Pendle Borough Council,Engineering & Special Projects,Supplies and Services,Other Expenses,4705,SQUIRE PATTON BOGGS (UK) LLP,A0064462,06/01/2022,HED0322771,1750,N,,N,N
Pendle Borough Council,Planning & Building Control,Supplies and Services,EFM Materials,4004,NEW MIND INTERNET CONSULTANCY LTD,A0064687,06/01/2022,PBC0322733,530,N,,N,N
Pendle Borough Council,Human Resources,Transport Related Expense,Car Allows : Offs : Lease Exps,3806,ARNOLD CLARK VEHICLE MANAGEMENT,A0065524,27/01/2022,PER0323078,22.42,N,,N,N
Pendle Borough Council,Human Resources,Transport Related Expense,Car Allows : Offs : Lease Exps,3806,ARNOLD CLARK VEHICLE MANAGEMENT,A0065524,27/01/2022,PER0323078,147.23,N,,N,N
Pendle Borough Council,Human Resources,Transport Related Expense,Car Allows : Offs : Lease Exps,3806,ARNOLD CLARK VEHICLE MANAGEMENT,A0065524,27/01/2022,PER0323078,176.68,N,,N,N
Pendle Borough Council,Engineering & Special Projects,Capital Costs,Ren Grant : 1996 Act,CH22,ATM CONSTRUCTION LTD,A0066308,20/01/2022,HED0322984,19591.98,N,,N,N
Pendle Borough Council,Human Resources,Transport Related Expense,Tprt : Annual Hire Charge,3601,LEX AUTOLEASE LIMITED,A0066530,06/01/2022,PER0322744,343.04,N,,N,N
Pendle Borough Council,Human Resources,Transport Related Expense,Tprt : Annual Hire Charge,3601,LEX AUTOLEASE LIMITED,A0066530,27/01/2022,PER0323077,343.04,N,,N,N
Pendle Borough Council,Property Services,Premises Related Expense,Bldgs : R & M : Day To Day,2001,SPEAKMAN CONTRACTORS LTD,A0066581,20/01/2022,EST0323034,112.09,N,,N,N
Pendle Borough Council,Property Services,Premises Related Expense,Bldgs : R & M : Day To Day,2001,SPEAKMAN CONTRACTORS LTD,A0066581,20/01/2022,EST0323034,67.38,N,,N,N
Pendle Borough Council,Property Services,Premises Related Expense,Bldgs : R & M : Day To Day,2001,SPEAKMAN CONTRACTORS LTD,A0066581,20/01/2022,EST0323034,36.75,N,,N,N
Pendle Borough Council,Property Services,Premises Related Expense,Bldgs : R & M : Day To Day,2001,SPEAKMAN CONTRACTORS LTD,A0066581,20/01/2022,EST0323034,22.5,N,,N,N
Pendle Borough Council,Property Services,Premises Related Expense,Bldgs : R & M : Day To Day,2001,SPEAKMAN CONTRACTORS LTD,A0066581,20/01/2022,EST0323034,77.54,N,,N,N
Pendle Borough Council,Property Services,Premises Related Expense,Bldgs : R & M : Day To Day,2001,SPEAKMAN CONTRACTORS LTD,A0066581,20/01/2022,EST0323034,192.64,N,,N,N
Pendle Borough Council,Property Services,Capital Costs,Capital : Payments,CD14,SPEAKMAN CONTRACTORS LTD,A0066581,13/01/2022,EST0322928,7880.13,N,,N,N
Pendle Borough Council,Property Services,Capital Costs,Capital : Payments,CD14,SPEAKMAN CONTRACTORS LTD,A0066581,20/01/2022,EST0323034,753.04,N,,N,N
Pendle Borough Council,Property Services,Capital Costs,Capital : Payments,CD14,SPEAKMAN CONTRACTORS LTD,A0066581,27/01/2022,EST0323136,2198.53,N,,N,N
Pendle Borough Council,Human Resources,Indirect Employee Expenses,Emp : Medical Expenses,1236,PEOPLE ASSET MANAGEMENT LIMITED,A0067613,27/01/2022,PER0323074,470,N,,N,N
Pendle Borough Council,Engineering & Special Projects,Supplies and Services,#N/A,4424,CHIPSIDE LTD,A0068587,27/01/2022,HED0323112,7.69,N,,N,N
Pendle Borough Council,Engineering & Special Projects,Supplies and Services,#N/A,4424,CHIPSIDE LTD,A0068587,27/01/2022,HED0323113,108.45,N,,N,N
Pendle Borough Council,Parks & Recreation Services,Premises Related Expense,Grounds : R & M : Day to Day : Routine,2101,M C & M A STEWART HAULAGE,A0068863,27/01/2022,PCO0323188,666.46,N,,N,N
Pendle Borough Council,Parks & Recreation Services,Premises Related Expense,Grounds : R & M : Day to Day : Routine,2101,M C & M A STEWART HAULAGE,A0068863,27/01/2022,PCO0323189,671.41,N,,N,N
Pendle Borough Council,Parks & Recreation Services,Premises Related Expense,Grounds : R & M : Day to Day : Routine,2101,M C & M A STEWART HAULAGE,A0068863,20/01/2022,PCO0322487,682,N,,N,N
Pendle Borough Council,Engineering & Special Projects,Supplies and Services,Seminars etc All Costs,4601,RH ENVIRONMENTAL LTD,A0069532,06/01/2022,HED0322773,595,N,,N,N
Pendle Borough Council,Engineering & Special Projects,Supplies and Services,Other Expenses,4705,PENDLE COMMUNITY HIGH SCHOOL,A0070931,06/01/2022,HED0322781,1120,N,,N,N
Pendle Borough Council,Financial Services,Supplies and Services,Sub-Contractors,4007,QHS SOLUTIONS LIMITED,A0071912,27/01/2022,AAS0321752,666.66,N,,N,N
Pendle Borough Council,Financial Services,Support Services,Bank Charges,7201,LLOYDS BANK PLC,A0072462,20/01/2022,AAS0323267,966.18,N,,N,N
Pendle Borough Council,Operational Services,Supplies and Services,Sub-Contractors,4007,RENTOKIL INITIAL UK LIMITED,A0072816,13/01/2022,OPS0322831,187.08,N,,N,N
Pendle Borough Council,Operational Services,Supplies and Services,Sub-Contractors,4007,RENTOKIL INITIAL UK LIMITED,A0072816,13/01/2022,OPS0322859,271,N,,N,N
Pendle Borough Council,Operational Services,Supplies and Services,Sub-Contractors,4007,RENTOKIL INITIAL UK LIMITED,A0072816,20/01/2022,OPS0323012,5.24,N,,N,N
Pendle Borough Council,Operational Services,Supplies and Services,Sub-Contractors,4007,RENTOKIL INITIAL UK LIMITED,A0072816,13/01/2022,OPS0322831,36.2,N,,N,N
Pendle Borough Council,Engineering & Special Projects,Supplies and Services,Other Expenses,4705,GISBURN ROAD COMMUNITY PRIMARY SCHOOL,A0074210,06/01/2022,HED0322780,540,N,,N,N
Pendle Borough Council,Operational Services,Agency Costs,Refuse Collection DLO,5005,C & C PROCESS SERVERS,A0074728,27/01/2022,OPS0323177,85,N,,N,N
Pendle Borough Council,Financial Services,Supplies and Services,Subscriptions & Donations,4706,VODAFONE LIMITED,A0076999,20/01/2022,AAS0323064,1057.89,N,,N,N
Pendle Borough Council,Engineering & Special Projects,Supplies and Services,Reference Books Acts,4304,THOMSON REUTERS PROFESSIONAL UK LIMITED,A0077400,13/01/2022,HED0322943,1046.66,N,,N,N
Pendle Borough Council,Engineering & Special Projects,Capital Costs,Capital : Payments,CD14,FOULRIDGE PARISH COUNCIL,A0077715,27/01/2022,HED0323108,450,N,,N,N
Pendle Borough Council,Engineering & Special Projects,Capital Costs,Capital : Payments,CD14,FOULRIDGE PARISH COUNCIL,A0077715,20/01/2022,HED0323042,2587.5,N,,N,N
Pendle Borough Council,Operational Services,Supplies and Services,EFM Materials,4004,GLASDON UK LIMITED,A0078667,13/01/2022,OPS0322836,26.89,N,,N,N
Pendle Borough Council,Parks & Recreation Services,Premises Related Expense,Grounds : R & M : Day to Day : Routine,2101,GROUNDSMAN TOOLS LTD,A0079260,20/01/2022,PCO0322484,82,N,,N,N
Pendle Borough Council,Parks & Recreation Services,Premises Related Expense,Grounds : R & M : Day to Day : Routine,2101,GROUNDSMAN TOOLS LTD,A0079260,20/01/2022,PCO0322484,82,N,,N,N
Pendle Borough Council,Engineering & Special Projects,Supplies and Services,Other Expenses,4705,QUALITY HOMES (NW) LIMITED,A0081253,06/01/2022,HED0322735,340,N,,N,N
Pendle Borough Council,Parks & Recreation Services,Premises Related Expense,Bldgs : R & M : Day To Day,2001,BT GROUP PLC,A0081546,13/01/2022,PCO0322874,138.9,N,,N,N
Pendle Borough Council,Engineering & Special Projects,Supplies and Services,Other Expenses,4705,POSITIVE ACTION IN THE COMMUNITY,A0081553,20/01/2022,HED0323058,3000,N,1088536,N,N
Pendle Borough Council,Engineering & Special Projects,Supplies and Services,Children`s holiday activities,4716,POSITIVE ACTION IN THE COMMUNITY,A0081553,20/01/2022,HED0323016,1255.3,N,1088536,N,N
Pendle Borough Council,Engineering & Special Projects,Supplies and Services,Other Expenses,4705,CALICO ENTERPRISE,A0082574,20/01/2022,HED0322982,13000,N,,N,N
Pendle Borough Council,Engineering & Special Projects,Supplies and Services,Other Expenses,4705,CALICO ENTERPRISE,A0082574,20/01/2022,HED0322981,55000,N,,N,N
Pendle Borough Council,Engineering & Special Projects,Supplies and Services,Other Expenses,4705,JAYS PROPERTIES SUPPORT,A0084041,20/01/2022,HED0323057,242.72,N,,N,N
Pendle Borough Council,Financial Services,Supplies and Services,Allpay,4422,ALLPAY LIMITED,A0084372,06/01/2022,AAS0322803,10,N,,N,N
Pendle Borough Council,Financial Services,Supplies and Services,Allpay,4422,ALLPAY LIMITED,A0084372,06/01/2022,AAS0322804,10,N,,N,N
Pendle Borough Council,Financial Services,Supplies and Services,Allpay,4422,ALLPAY LIMITED,A0084372,06/01/2022,AAS0322801,18.74,N,,N,N
Pendle Borough Council,Financial Services,Supplies and Services,Allpay,4422,ALLPAY LIMITED,A0084372,06/01/2022,AAS0322800,22.76,N,,N,N
Pendle Borough Council,Financial Services,Supplies and Services,Allpay,4422,ALLPAY LIMITED,A0084372,06/01/2022,AAS0322805,57.18,N,,N,N
Pendle Borough Council,Financial Services,Supplies and Services,Allpay,4422,ALLPAY LIMITED,A0084372,06/01/2022,AAS0322802,1854.57,N,,N,N
Pendle Borough Council,Engineering & Special Projects,Capital Costs,Ren Grant : 1996 Act,CH22,ELITE PLUMBING,A0084584,20/01/2022,HED0322983,17375,N,,N,N
Pendle Borough Council,Engineering & Special Projects,Supplies and Services,Other Expenses,4705,VICTORIA PARK PAVILION CIC,A0085028,06/01/2022,HED0322787,567,N,,N,N
Pendle Borough Council,Engineering & Special Projects,Supplies and Services,Grant Funding,4737,VICTORIA PARK PAVILION CIC,A0085028,06/01/2022,HED0322793,7500,N,,N,N
Pendle Borough Council,Engineering & Special Projects,Supplies and Services,Other Expenses,4705,WAQAS ARSHAD,A0085472,20/01/2022,HED0323017,1015.11,N,,N,N
Pendle Borough Council,Engineering & Special Projects,Capital Costs,Capital : Payments,CD14,MARCHBRIDGE BUILDERS LIMITED,A0087284,27/01/2022,HED0323161,20049.23,N,,N,N
Pendle Borough Council,Engineering & Special Projects,Capital Costs,Capital : Payments,CD14,FRESH & SIMPLE T/A TURNERS,A0089436,27/01/2022,HED0323107,333.33,N,,N,N
Pendle Borough Council,Financial Services,Supplies and Services,Subscriptions & Donations,4706,INFORM CPI LIMITED,A0089895,27/01/2022,AAS0323173,64.8,N,,N,N
Pendle Borough Council,Financial Services,Supplies and Services,Subscriptions & Donations,4706,INFORM CPI LIMITED,A0089895,20/01/2022,AAS0323062,540,N,,N,N
Pendle Borough Council,Financial Services,Supplies and Services,Subscriptions & Donations,4706,INFORM CPI LIMITED,A0089895,06/01/2022,AAS0322799,639,N,,N,N
Pendle Borough Council,Financial Services,Supplies and Services,Subscriptions & Donations,4706,INFORM CPI LIMITED,A0089895,27/01/2022,AAS0323176,810,N,,N,N
Pendle Borough Council,Financial Services,Supplies and Services,Subscriptions & Donations,4706,INFORM CPI LIMITED,A0089895,27/01/2022,AAS0323172,1138.5,N,,N,N
Pendle Borough Council,Property Services,Premises Related Expense,Bldgs : R & M : Day To Day,2001,BOWLAND TREE CONSULTANCY LTD,A0089938,06/01/2022,EST0322758,455.5,N,,N,N
Pendle Borough Council,Engineering & Special Projects,Supplies and Services,Grant Funding,4737,ST JOHNS WITH ST PHILIP PCC,A0089995,13/01/2022,HED0322878,7500,N,,N,N
Pendle Borough Council,Engineering & Special Projects,Supplies and Services,Children`s holiday activities,4716,SMARTYPANTS EXCLUSIVE CHILDCARE LTD,A0090111,13/01/2022,HED0322938,350,N,,N,N
Pendle Borough Council,Engineering & Special Projects,Supplies and Services,Children`s holiday activities,4716,SMARTYPANTS EXCLUSIVE CHILDCARE LTD,A0090111,13/01/2022,HED0322939,3150,N,,N,N
Pendle Borough Council,Parks & Recreation Services,Premises Related Expense,Grounds : R & M : Day to Day : Routine,2101,MARTIN LEE,A0090177,27/01/2022,PCO0323152,147.5,N,,N,N
Pendle Borough Council,Parks & Recreation Services,Premises Related Expense,Grounds : R & M : Day to Day : Routine,2101,MARTIN LEE,A0090177,27/01/2022,PCO0323152,250,N,,N,N
Pendle Borough Council,Parks & Recreation Services,Premises Related Expense,Grounds : R & M : Day to Day : Routine,2101,MARTIN LEE,A0090177,27/01/2022,PCO0323152,65,N,,N,N
Pendle Borough Council,Parks & Recreation Services,Premises Related Expense,Grounds : R & M : Day to Day : Routine,2101,MARTIN LEE,A0090177,27/01/2022,PCO0323152,160,N,,N,N
Pendle Borough Council,Parks & Recreation Services,Premises Related Expense,Grounds : R & M : Day to Day : Routine,2101,MARTIN LEE,A0090177,27/01/2022,PCO0323152,186.5,N,,N,N
Pendle Borough Council,Parks & Recreation Services,Premises Related Expense,Grounds : R & M : Day to Day : Routine,2101,MARTIN LEE,A0090177,27/01/2022,PCO0323152,250,N,,N,N
Pendle Borough Council,Parks & Recreation Services,Premises Related Expense,Grounds : R & M : Day to Day : Routine,2101,MARTIN LEE,A0090177,27/01/2022,PCO0323152,250,N,,N,N
Pendle Borough Council,Engineering & Special Projects,Supplies and Services,Other Expenses,4705,FRIENDS OF BALLGROVE,A0090242,06/01/2022,HED0322786,450,N,,N,N
Pendle Borough Council,Financial Services,Transport Related Expense,Diesel Oil,3202,FUELMATE LTD,A0090265,19/01/2022,AAS0323294,131.23,N,,N,N
Pendle Borough Council,Financial Services,Transport Related Expense,Diesel Oil,3202,FUELMATE LTD,A0090265,19/01/2022,AAS0323294,258.83,N,,N,N
Pendle Borough Council,Financial Services,Transport Related Expense,Diesel Oil,3202,FUELMATE LTD,A0090265,25/01/2022,AAS0323295,260.34,N,,N,N
Pendle Borough Council,Financial Services,Transport Related Expense,Diesel Oil,3202,FUELMATE LTD,A0090265,04/01/2022,AAS0323292,296.98,N,,N,N
Pendle Borough Council,Financial Services,Transport Related Expense,Diesel Oil,3202,FUELMATE LTD,A0090265,11/01/2022,AAS0323293,322.16,N,,N,N
Pendle Borough Council,Financial Services,Transport Related Expense,Diesel Oil,3202,FUELMATE LTD,A0090265,25/01/2022,AAS0323295,162.33,N,,N,N
Pendle Borough Council,Financial Services,Transport Related Expense,Diesel Oil,3202,FUELMATE LTD,A0090265,11/01/2022,AAS0323293,237.29,N,,N,N
Pendle Borough Council,Financial Services,Transport Related Expense,Diesel Oil,3202,FUELMATE LTD,A0090265,19/01/2022,AAS0323294,301.92,N,,N,N
Pendle Borough Council,Financial Services,Transport Related Expense,Diesel Oil,3202,FUELMATE LTD,A0090265,04/01/2022,AAS0323292,390.76,N,,N,N
Pendle Borough Council,Financial Services,Transport Related Expense,Diesel Oil,3202,FUELMATE LTD,A0090265,19/01/2022,AAS0323294,218.38,N,,N,N
Pendle Borough Council,Financial Services,Transport Related Expense,Diesel Oil,3202,FUELMATE LTD,A0090265,25/01/2022,AAS0323295,235.38,N,,N,N
Pendle Borough Council,Financial Services,Transport Related Expense,Diesel Oil,3202,FUELMATE LTD,A0090265,11/01/2022,AAS0323293,278.1,N,,N,N
Pendle Borough Council,Financial Services,Transport Related Expense,Diesel Oil,3202,FUELMATE LTD,A0090265,04/01/2022,AAS0323292,292.76,N,,N,N
Pendle Borough Council,Financial Services,Transport Related Expense,Diesel Oil,3202,FUELMATE LTD,A0090265,19/01/2022,AAS0323294,61.18,N,,N,N
Pendle Borough Council,Financial Services,Transport Related Expense,Diesel Oil,3202,FUELMATE LTD,A0090265,25/01/2022,AAS0323295,89.38,N,,N,N
Pendle Borough Council,Financial Services,Transport Related Expense,Diesel Oil,3202,FUELMATE LTD,A0090265,11/01/2022,AAS0323293,277.61,N,,N,N
Pendle Borough Council,Financial Services,Transport Related Expense,Diesel Oil,3202,FUELMATE LTD,A0090265,04/01/2022,AAS0323292,301.01,N,,N,N
Pendle Borough Council,Financial Services,Transport Related Expense,Diesel Oil,3202,FUELMATE LTD,A0090265,25/01/2022,AAS0323295,208.37,N,,N,N
Pendle Borough Council,Financial Services,Transport Related Expense,Diesel Oil,3202,FUELMATE LTD,A0090265,11/01/2022,AAS0323293,214.91,N,,N,N
Pendle Borough Council,Financial Services,Transport Related Expense,Diesel Oil,3202,FUELMATE LTD,A0090265,19/01/2022,AAS0323294,310.53,N,,N,N
Pendle Borough Council,Financial Services,Transport Related Expense,Diesel Oil,3202,FUELMATE LTD,A0090265,04/01/2022,AAS0323292,330.47,N,,N,N
Pendle Borough Council,Financial Services,Transport Related Expense,Diesel Oil,3202,FUELMATE LTD,A0090265,19/01/2022,AAS0323294,116.73,N,,N,N
Pendle Borough Council,Financial Services,Transport Related Expense,Diesel Oil,3202,FUELMATE LTD,A0090265,25/01/2022,AAS0323295,161.09,N,,N,N
Pendle Borough Council,Financial Services,Transport Related Expense,Diesel Oil,3202,FUELMATE LTD,A0090265,04/01/2022,AAS0323292,227.35,N,,N,N
Pendle Borough Council,Financial Services,Transport Related Expense,Diesel Oil,3202,FUELMATE LTD,A0090265,11/01/2022,AAS0323293,232.58,N,,N,N
Pendle Borough Council,Financial Services,Transport Related Expense,Diesel Oil,3202,FUELMATE LTD,A0090265,25/01/2022,AAS0323295,117.28,N,,N,N
Pendle Borough Council,Financial Services,Transport Related Expense,Diesel Oil,3202,FUELMATE LTD,A0090265,11/01/2022,AAS0323293,164.88,N,,N,N
Pendle Borough Council,Financial Services,Transport Related Expense,Diesel Oil,3202,FUELMATE LTD,A0090265,19/01/2022,AAS0323294,186.88,N,,N,N
Pendle Borough Council,Financial Services,Transport Related Expense,Diesel Oil,3202,FUELMATE LTD,A0090265,25/01/2022,AAS0323295,122.15,N,,N,N
Pendle Borough Council,Financial Services,Transport Related Expense,Diesel Oil,3202,FUELMATE LTD,A0090265,19/01/2022,AAS0323294,159.92,N,,N,N
Pendle Borough Council,Financial Services,Transport Related Expense,Diesel Oil,3202,FUELMATE LTD,A0090265,11/01/2022,AAS0323293,272.47,N,,N,N
Pendle Borough Council,Financial Services,Transport Related Expense,Diesel Oil,3202,FUELMATE LTD,A0090265,04/01/2022,AAS0323292,351.51,N,,N,N
Pendle Borough Council,Financial Services,Transport Related Expense,Diesel Oil,3202,FUELMATE LTD,A0090265,25/01/2022,AAS0323295,129.15,N,,N,N
Pendle Borough Council,Financial Services,Transport Related Expense,Diesel Oil,3202,FUELMATE LTD,A0090265,11/01/2022,AAS0323293,176.91,N,,N,N
Pendle Borough Council,Financial Services,Transport Related Expense,Diesel Oil,3202,FUELMATE LTD,A0090265,04/01/2022,AAS0323292,239.04,N,,N,N
Pendle Borough Council,Financial Services,Transport Related Expense,Diesel Oil,3202,FUELMATE LTD,A0090265,19/01/2022,AAS0323294,271.7,N,,N,N
Pendle Borough Council,Financial Services,Transport Related Expense,Diesel Oil,3202,FUELMATE LTD,A0090265,25/01/2022,AAS0323295,85.84,N,,N,N
Pendle Borough Council,Financial Services,Transport Related Expense,Diesel Oil,3202,FUELMATE LTD,A0090265,19/01/2022,AAS0323294,196.95,N,,N,N
Pendle Borough Council,Financial Services,Transport Related Expense,Diesel Oil,3202,FUELMATE LTD,A0090265,11/01/2022,AAS0323293,214.28,N,,N,N
Pendle Borough Council,Financial Services,Transport Related Expense,Diesel Oil,3202,FUELMATE LTD,A0090265,04/01/2022,AAS0323292,236.42,N,,N,N
Pendle Borough Council,Financial Services,Transport Related Expense,Diesel Oil,3202,FUELMATE LTD,A0090265,25/01/2022,AAS0323295,49.79,N,,N,N
Pendle Borough Council,Financial Services,Transport Related Expense,Diesel Oil,3202,FUELMATE LTD,A0090265,11/01/2022,AAS0323293,202.23,N,,N,N
Pendle Borough Council,Financial Services,Transport Related Expense,Diesel Oil,3202,FUELMATE LTD,A0090265,19/01/2022,AAS0323294,272.67,N,,N,N
Pendle Borough Council,Financial Services,Transport Related Expense,Diesel Oil,3202,FUELMATE LTD,A0090265,04/01/2022,AAS0323292,287.3,N,,N,N
Pendle Borough Council,Financial Services,Transport Related Expense,Diesel Oil,3202,FUELMATE LTD,A0090265,19/01/2022,AAS0323294,80.85,N,,N,N
Pendle Borough Council,Financial Services,Transport Related Expense,Diesel Oil,3202,FUELMATE LTD,A0090265,11/01/2022,AAS0323293,179.7,N,,N,N
Pendle Borough Council,Financial Services,Transport Related Expense,Diesel Oil,3202,FUELMATE LTD,A0090265,04/01/2022,AAS0323292,196.77,N,,N,N
Pendle Borough Council,Financial Services,Transport Related Expense,Diesel Oil,3202,FUELMATE LTD,A0090265,25/01/2022,AAS0323295,207.44,N,,N,N
Pendle Borough Council,Financial Services,Transport Related Expense,Diesel Oil,3202,FUELMATE LTD,A0090265,25/01/2022,AAS0323295,130.55,N,,N,N
Pendle Borough Council,Financial Services,Transport Related Expense,Diesel Oil,3202,FUELMATE LTD,A0090265,11/01/2022,AAS0323293,192.49,N,,N,N
Pendle Borough Council,Financial Services,Transport Related Expense,Diesel Oil,3202,FUELMATE LTD,A0090265,19/01/2022,AAS0323294,207.3,N,,N,N
Pendle Borough Council,Financial Services,Transport Related Expense,Diesel Oil,3202,FUELMATE LTD,A0090265,04/01/2022,AAS0323292,266.31,N,,N,N
Pendle Borough Council,Financial Services,Transport Related Expense,Diesel Oil,3202,FUELMATE LTD,A0090265,25/01/2022,AAS0323295,59.47,N,,N,N
Pendle Borough Council,Financial Services,Transport Related Expense,Diesel Oil,3202,FUELMATE LTD,A0090265,11/01/2022,AAS0323293,171.77,N,,N,N
Pendle Borough Council,Financial Services,Transport Related Expense,Diesel Oil,3202,FUELMATE LTD,A0090265,04/01/2022,AAS0323292,297.91,N,,N,N
Pendle Borough Council,Financial Services,Transport Related Expense,Diesel Oil,3202,FUELMATE LTD,A0090265,19/01/2022,AAS0323294,106.09,N,,N,N
Pendle Borough Council,Financial Services,Transport Related Expense,Diesel Oil,3202,FUELMATE LTD,A0090265,04/01/2022,AAS0323292,174.74,N,,N,N
Pendle Borough Council,Financial Services,Transport Related Expense,Diesel Oil,3202,FUELMATE LTD,A0090265,11/01/2022,AAS0323293,207.65,N,,N,N
Pendle Borough Council,Financial Services,Transport Related Expense,Diesel Oil,3202,FUELMATE LTD,A0090265,25/01/2022,AAS0323295,97.61,N,,N,N
Pendle Borough Council,Financial Services,Transport Related Expense,Diesel Oil,3202,FUELMATE LTD,A0090265,19/01/2022,AAS0323294,177.4,N,,N,N
Pendle Borough Council,Financial Services,Transport Related Expense,Diesel Oil,3202,FUELMATE LTD,A0090265,11/01/2022,AAS0323293,218.6,N,,N,N
Pendle Borough Council,Financial Services,Transport Related Expense,Diesel Oil,3202,FUELMATE LTD,A0090265,04/01/2022,AAS0323292,245.27,N,,N,N
Pendle Borough Council,Financial Services,Transport Related Expense,Diesel Oil,3202,FUELMATE LTD,A0090265,25/01/2022,AAS0323295,128.65,N,,N,N
Pendle Borough Council,Financial Services,Transport Related Expense,Diesel Oil,3202,FUELMATE LTD,A0090265,19/01/2022,AAS0323294,142.62,N,,N,N
Pendle Borough Council,Financial Services,Transport Related Expense,Diesel Oil,3202,FUELMATE LTD,A0090265,11/01/2022,AAS0323293,190.83,N,,N,N
Pendle Borough Council,Financial Services,Transport Related Expense,Diesel Oil,3202,FUELMATE LTD,A0090265,04/01/2022,AAS0323292,209.15,N,,N,N
Pendle Borough Council,Financial Services,Transport Related Expense,Diesel Oil,3202,FUELMATE LTD,A0090265,11/01/2022,AAS0323293,76.37,N,,N,N
Pendle Borough Council,Financial Services,Transport Related Expense,Diesel Oil,3202,FUELMATE LTD,A0090265,19/01/2022,AAS0323294,94.67,N,,N,N
Pendle Borough Council,Financial Services,Transport Related Expense,Diesel Oil,3202,FUELMATE LTD,A0090265,25/01/2022,AAS0323295,95.54,N,,N,N
Pendle Borough Council,Financial Services,Transport Related Expense,Diesel Oil,3202,FUELMATE LTD,A0090265,04/01/2022,AAS0323292,192.88,N,,N,N
Pendle Borough Council,Financial Services,Transport Related Expense,Diesel Oil,3202,FUELMATE LTD,A0090265,11/01/2022,AAS0323293,34.49,N,,N,N
Pendle Borough Council,Financial Services,Transport Related Expense,Diesel Oil,3202,FUELMATE LTD,A0090265,19/01/2022,AAS0323294,83.31,N,,N,N
Pendle Borough Council,Financial Services,Transport Related Expense,Diesel Oil,3202,FUELMATE LTD,A0090265,25/01/2022,AAS0323295,98.93,N,,N,N
Pendle Borough Council,Financial Services,Transport Related Expense,Diesel Oil,3202,FUELMATE LTD,A0090265,04/01/2022,AAS0323292,130.85,N,,N,N
Pendle Borough Council,Financial Services,Transport Related Expense,Diesel Oil,3202,FUELMATE LTD,A0090265,19/01/2022,AAS0323294,147.59,N,,N,N
Pendle Borough Council,Financial Services,Transport Related Expense,Diesel Oil,3202,FUELMATE LTD,A0090265,11/01/2022,AAS0323293,216.98,N,,N,N
Pendle Borough Council,Financial Services,Transport Related Expense,Diesel Oil,3202,FUELMATE LTD,A0090265,11/01/2022,AAS0323293,77.72,N,,N,N
Pendle Borough Council,Financial Services,Transport Related Expense,Diesel Oil,3202,FUELMATE LTD,A0090265,19/01/2022,AAS0323294,84.5,N,,N,N
Pendle Borough Council,Financial Services,Transport Related Expense,Diesel Oil,3202,FUELMATE LTD,A0090265,04/01/2022,AAS0323292,67.57,N,,N,N
Pendle Borough Council,Financial Services,Transport Related Expense,Diesel Oil,3202,FUELMATE LTD,A0090265,19/01/2022,AAS0323294,70.67,N,,N,N
Pendle Borough Council,Financial Services,Transport Related Expense,Diesel Oil,3202,FUELMATE LTD,A0090265,19/01/2022,AAS0323294,61.18,N,,N,N
Pendle Borough Council,Financial Services,Transport Related Expense,Diesel Oil,3202,FUELMATE LTD,A0090265,19/01/2022,AAS0323294,57.02,N,,N,N
Pendle Borough Council,Financial Services,Transport Related Expense,Diesel Oil,3202,FUELMATE LTD,A0090265,25/01/2022,AAS0323295,61,N,,N,N
Pendle Borough Council,Financial Services,Transport Related Expense,Diesel Oil,3202,FUELMATE LTD,A0090265,11/01/2022,AAS0323293,67.31,N,,N,N
Pendle Borough Council,Financial Services,Transport Related Expense,Diesel Oil,3202,FUELMATE LTD,A0090265,04/01/2022,AAS0323292,120,N,,N,N
Pendle Borough Council,Financial Services,Transport Related Expense,Diesel Oil,3202,FUELMATE LTD,A0090265,25/01/2022,AAS0323295,46.27,N,,N,N
Pendle Borough Council,Financial Services,Transport Related Expense,Diesel Oil,3202,FUELMATE LTD,A0090265,19/01/2022,AAS0323294,66.79,N,,N,N
Pendle Borough Council,Financial Services,Transport Related Expense,Diesel Oil,3202,FUELMATE LTD,A0090265,04/01/2022,AAS0323292,92.28,N,,N,N
Pendle Borough Council,Financial Services,Transport Related Expense,Diesel Oil,3202,FUELMATE LTD,A0090265,11/01/2022,AAS0323293,119.92,N,,N,N
Pendle Borough Council,Financial Services,Transport Related Expense,Diesel Oil,3202,FUELMATE LTD,A0090265,11/01/2022,AAS0323293,46.21,N,,N,N
Pendle Borough Council,Financial Services,Transport Related Expense,Diesel Oil,3202,FUELMATE LTD,A0090265,25/01/2022,AAS0323295,46.31,N,,N,N
Pendle Borough Council,Financial Services,Transport Related Expense,Diesel Oil,3202,FUELMATE LTD,A0090265,19/01/2022,AAS0323294,47.86,N,,N,N
Pendle Borough Council,Financial Services,Transport Related Expense,Diesel Oil,3202,FUELMATE LTD,A0090265,04/01/2022,AAS0323292,56.82,N,,N,N
Pendle Borough Council,Financial Services,Transport Related Expense,Diesel Oil,3202,FUELMATE LTD,A0090265,25/01/2022,AAS0323295,42.52,N,,N,N
Pendle Borough Council,Financial Services,Transport Related Expense,Diesel Oil,3202,FUELMATE LTD,A0090265,04/01/2022,AAS0323292,43.47,N,,N,N
Pendle Borough Council,Financial Services,Transport Related Expense,Diesel Oil,3202,FUELMATE LTD,A0090265,11/01/2022,AAS0323293,50.87,N,,N,N
Pendle Borough Council,Financial Services,Transport Related Expense,Diesel Oil,3202,FUELMATE LTD,A0090265,19/01/2022,AAS0323294,95,N,,N,N
Pendle Borough Council,Financial Services,Transport Related Expense,Diesel Oil,3202,FUELMATE LTD,A0090265,19/01/2022,AAS0323294,49.23,N,,N,N
Pendle Borough Council,Financial Services,Transport Related Expense,Diesel Oil,3202,FUELMATE LTD,A0090265,11/01/2022,AAS0323293,56.08,N,,N,N
Pendle Borough Council,Financial Services,Transport Related Expense,Diesel Oil,3202,FUELMATE LTD,A0090265,04/01/2022,AAS0323292,105.14,N,,N,N
Pendle Borough Council,Financial Services,Transport Related Expense,Diesel Oil,3202,FUELMATE LTD,A0090265,11/01/2022,AAS0323293,61.29,N,,N,N
Pendle Borough Council,Financial Services,Transport Related Expense,Diesel Oil,3202,FUELMATE LTD,A0090265,04/01/2022,AAS0323292,64.1,N,,N,N
Pendle Borough Council,Financial Services,Transport Related Expense,Diesel Oil,3202,FUELMATE LTD,A0090265,19/01/2022,AAS0323294,67.96,N,,N,N
Pendle Borough Council,Financial Services,Transport Related Expense,Diesel Oil,3202,FUELMATE LTD,A0090265,04/01/2022,AAS0323292,49.01,N,,N,N
Pendle Borough Council,Financial Services,Transport Related Expense,Diesel Oil,3202,FUELMATE LTD,A0090265,25/01/2022,AAS0323295,50.01,N,,N,N
Pendle Borough Council,Financial Services,Transport Related Expense,Diesel Oil,3202,FUELMATE LTD,A0090265,11/01/2022,AAS0323293,50.42,N,,N,N
Pendle Borough Council,Financial Services,Transport Related Expense,Diesel Oil,3202,FUELMATE LTD,A0090265,25/01/2022,AAS0323295,32.12,N,,N,N
Pendle Borough Council,Financial Services,Transport Related Expense,Diesel Oil,3202,FUELMATE LTD,A0090265,11/01/2022,AAS0323293,42.86,N,,N,N
Pendle Borough Council,Financial Services,Transport Related Expense,Diesel Oil,3202,FUELMATE LTD,A0090265,19/01/2022,AAS0323294,39.06,N,,N,N
Pendle Borough Council,Financial Services,Transport Related Expense,Diesel Oil,3202,FUELMATE LTD,A0090265,04/01/2022,AAS0323292,42.45,N,,N,N
Pendle Borough Council,Financial Services,Transport Related Expense,Diesel Oil,3202,FUELMATE LTD,A0090265,04/01/2022,AAS0323292,49.28,N,,N,N
Pendle Borough Council,Financial Services,Transport Related Expense,Diesel Oil,3202,FUELMATE LTD,A0090265,19/01/2022,AAS0323294,42.86,N,,N,N
Pendle Borough Council,Financial Services,Transport Related Expense,Diesel Oil,3202,FUELMATE LTD,A0090265,19/01/2022,AAS0323294,59.65,N,,N,N
Pendle Borough Council,Financial Services,Transport Related Expense,Diesel Oil,3202,FUELMATE LTD,A0090265,11/01/2022,AAS0323293,65.64,N,,N,N
Pendle Borough Council,Financial Services,Transport Related Expense,Diesel Oil,3202,FUELMATE LTD,A0090265,04/01/2022,AAS0323292,65.92,N,,N,N
Pendle Borough Council,Financial Services,Transport Related Expense,Diesel Oil,3202,FUELMATE LTD,A0090265,19/01/2022,AAS0323294,52.51,N,,N,N
Pendle Borough Council,Financial Services,Transport Related Expense,Diesel Oil,3202,FUELMATE LTD,A0090265,04/01/2022,AAS0323292,56.74,N,,N,N
Pendle Borough Council,Financial Services,Transport Related Expense,Diesel Oil,3202,FUELMATE LTD,A0090265,04/01/2022,AAS0323292,46.14,N,,N,N
Pendle Borough Council,Financial Services,Transport Related Expense,Diesel Oil,3202,FUELMATE LTD,A0090265,25/01/2022,AAS0323295,62.75,N,,N,N
Pendle Borough Council,Financial Services,Transport Related Expense,Diesel Oil,3202,FUELMATE LTD,A0090265,11/01/2022,AAS0323293,56.64,N,,N,N
Pendle Borough Council,Financial Services,Transport Related Expense,Diesel Oil,3202,FUELMATE LTD,A0090265,11/01/2022,AAS0323293,45.1,N,,N,N
Pendle Borough Council,Financial Services,Transport Related Expense,Diesel Oil,3202,FUELMATE LTD,A0090265,19/01/2022,AAS0323294,47.48,N,,N,N
Pendle Borough Council,Financial Services,Transport Related Expense,Diesel Oil,3202,FUELMATE LTD,A0090265,04/01/2022,AAS0323292,49.21,N,,N,N
Pendle Borough Council,Financial Services,Transport Related Expense,Diesel Oil,3202,FUELMATE LTD,A0090265,04/01/2022,AAS0323292,117.2,N,,N,N
Pendle Borough Council,Operational Services,Premises Related Expense,Water & Sewerage,2501,AQUAM WATER SERVICES LIMITED,A0090390,13/01/2022,OPS0322832,1.42,N,,N,N
Pendle Borough Council,Engineering & Special Projects,Supplies and Services,Publicity & advertisement,4704,LANCASHIRE BUSINESS VIEW,A0090521,13/01/2022,HED0321860,1475,N,,N,N
Pendle Borough Council,Revenues Services,Supplies and Services,Consultants Fees,4401,PS&P LTD,A0090720,13/01/2022,TRE0322948,54.29,N,,N,N
Pendle Borough Council,Parks & Recreation Services,Premises Related Expense,Grounds : R & M : Day to Day : Routine,2101,CMS TREE SERVICES,A0091372,06/01/2022,PCO0322728,480,N,,N,N
Pendle Borough Council,Operational Services,Transport Related Expense,Tprt : Repairs : General,3105,WCF LIMITED,A0091385,20/01/2022,OPS0322998,470,N,,N,N
Pendle Borough Council,Operational Services,Transport Related Expense,Diesel Oil,3202,WCF LIMITED,A0091385,06/01/2022,OPS0322246,400,N,,N,N
Pendle Borough Council,Operational Services,Supplies and Services,Sub-Contractors,4007,PERMISERV LIMITED,A0091396,13/01/2022,OPS0322840,18.1,N,,N,N
Pendle Borough Council,Operational Services,Supplies and Services,Sub-Contractors,4007,PERMISERV LIMITED,A0091396,06/01/2022,OPS0322468,19.9,N,,N,N
Pendle Borough Council,Operational Services,Supplies and Services,Other Expenses,4705,CRONER-I LIMITED,A0091446,06/01/2022,OPS0322714,129,N,,N,N
Pendle Borough Council,Operational Services,Supplies and Services,Other Expenses,4705,CRONER-I LIMITED,A0091446,06/01/2022,OPS0322714,2607,N,,N,N
Pendle Borough Council,Planning & Building Control,,Fees Income : Non-VATable,9302,PORTALPLANQUEST LIMITED,A0091554,06/01/2022,PBC0322746,206,N,,N,N
Pendle Borough Council,Planning & Building Control,,Fees Income : Non-VATable,9302,PORTALPLANQUEST LIMITED,A0091554,20/01/2022,PBC0322979,206,N,,N,N
Pendle Borough Council,Planning & Building Control,,Fees Income : Non-VATable,9302,PORTALPLANQUEST LIMITED,A0091554,06/01/2022,PBC0322748,462,N,,N,N
Pendle Borough Council,Planning & Building Control,,Fees Income : Non-VATable,9302,PORTALPLANQUEST LIMITED,A0091554,20/01/2022,PBC0322978,462,N,,N,N
Pendle Borough Council,Planning & Building Control,,Fees Income : Non-VATable,9302,PORTALPLANQUEST LIMITED,A0091554,20/01/2022,PBC0322980,462,N,,N,N
Pendle Borough Council,Planning & Building Control,,Fees Income : Non-VATable,9302,PORTALPLANQUEST LIMITED,A0091554,06/01/2022,PBC0322747,924,N,,N,N
Pendle Borough Council,Parks & Recreation Services,Agency Staff,Emp : Basic Wages,1001,NW RECRUITMENT SERVICES LIMITED,A0091588,06/01/2022,PCO0322742,-61.15,N,,N,N
Pendle Borough Council,Parks & Recreation Services,Agency Staff,Emp : Basic Wages,1001,NW RECRUITMENT SERVICES LIMITED,A0091588,13/01/2022,PCO0322876,843.87,N,,N,N
Pendle Borough Council,Parks & Recreation Services,Agency Staff,Emp : Basic Wages,1001,NW RECRUITMENT SERVICES LIMITED,A0091588,06/01/2022,PCO0322742,957.94,N,,N,N
Pendle Borough Council,Operational Services,Agency Staff,Emp : Agency Wages,1004,NW RECRUITMENT SERVICES LIMITED,A0091588,06/01/2022,OPS0322713,1560.82,N,,N,N
Pendle Borough Council,Operational Services,Agency Staff,Emp : Agency Wages,1004,NW RECRUITMENT SERVICES LIMITED,A0091588,06/01/2022,OPS0322713,1025.84,N,,N,N
Pendle Borough Council,Operational Services,Agency Staff,Emp : Agency Wages,1004,NW RECRUITMENT SERVICES LIMITED,A0091588,06/01/2022,OPS0322713,671.29,N,,N,N
Pendle Borough Council,Parks & Recreation Services,Agency Staff,Emp : Salaries & Wages,1020,NW RECRUITMENT SERVICES LIMITED,A0091588,13/01/2022,PCO0322875,106.4,N,,N,N
Pendle Borough Council,Parks & Recreation Services,Supplies and Services,EFM : Other Equipment,4003,NW RECRUITMENT SERVICES LIMITED,A0091588,06/01/2022,PCO0322742,428.05,N,,N,N
Pendle Borough Council,Parks & Recreation Services,Supplies and Services,EFM : Other Equipment,4003,NW RECRUITMENT SERVICES LIMITED,A0091588,13/01/2022,PCO0322876,428.05,N,,N,N
Pendle Borough Council,Operational Services,Transport Related Expense,Tprt : Repairs : General,3105,GO PLANT FLEET SERVICES LIMITED,A0091600,13/01/2022,OPS0322819,221.85,N,,N,N
Pendle Borough Council,Operational Services,Transport Related Expense,Tprt : Repairs : General,3105,GO PLANT FLEET SERVICES LIMITED,A0091600,13/01/2022,OPS0322815,84.25,N,,N,N
Pendle Borough Council,Operational Services,Transport Related Expense,Tprt : Repairs : General,3105,GO PLANT FLEET SERVICES LIMITED,A0091600,13/01/2022,OPS0322810,188.92,N,,N,N
Pendle Borough Council,Operational Services,Transport Related Expense,Tprt : Repairs : General,3105,GO PLANT FLEET SERVICES LIMITED,A0091600,13/01/2022,OPS0322816,104.61,N,,N,N
Pendle Borough Council,Operational Services,Transport Related Expense,Tprt : Repairs : General,3105,GO PLANT FLEET SERVICES LIMITED,A0091600,13/01/2022,OPS0322826,94.39,N,,N,N
Pendle Borough Council,Operational Services,Transport Related Expense,Tprt : Repairs : General,3105,GO PLANT FLEET SERVICES LIMITED,A0091600,13/01/2022,OPS0322825,60.96,N,,N,N
Pendle Borough Council,Operational Services,Transport Related Expense,Tprt : Repairs : General,3105,GO PLANT FLEET SERVICES LIMITED,A0091600,13/01/2022,OPS0322808,70.44,N,,N,N
Pendle Borough Council,Operational Services,Transport Related Expense,Tprt : Repairs : General,3105,GO PLANT FLEET SERVICES LIMITED,A0091600,13/01/2022,OPS0322825,186.95,N,,N,N
Pendle Borough Council,Operational Services,Transport Related Expense,Tprt : Repairs : General,3105,GO PLANT FLEET SERVICES LIMITED,A0091600,13/01/2022,OPS0322820,94.39,N,,N,N
Pendle Borough Council,Operational Services,Transport Related Expense,Tprt : Repairs : General,3105,GO PLANT FLEET SERVICES LIMITED,A0091600,13/01/2022,OPS0322813,241.72,N,,N,N
Pendle Borough Council,Operational Services,Transport Related Expense,Tprt : Repairs : General,3105,GO PLANT FLEET SERVICES LIMITED,A0091600,13/01/2022,OPS0322814,44.53,N,,N,N
Pendle Borough Council,Operational Services,Transport Related Expense,Tprt : Repairs : General,3105,GO PLANT FLEET SERVICES LIMITED,A0091600,13/01/2022,OPS0322812,57.28,N,,N,N
Pendle Borough Council,Operational Services,Transport Related Expense,Tprt : Repairs : General,3105,GO PLANT FLEET SERVICES LIMITED,A0091600,13/01/2022,OPS0322824,60.9,N,,N,N
Pendle Borough Council,Operational Services,Transport Related Expense,Tprt : Repairs : General,3105,GO PLANT FLEET SERVICES LIMITED,A0091600,13/01/2022,OPS0322821,101.61,N,,N,N
Pendle Borough Council,Operational Services,Transport Related Expense,Tprt : Repairs : General,3105,GO PLANT FLEET SERVICES LIMITED,A0091600,13/01/2022,OPS0322827,30.08,N,,N,N
Pendle Borough Council,Operational Services,Transport Related Expense,Tprt : Repairs : General,3105,GO PLANT FLEET SERVICES LIMITED,A0091600,13/01/2022,OPS0322829,350.79,N,,N,N
Pendle Borough Council,Operational Services,Transport Related Expense,Tprt : Repairs : General,3105,GO PLANT FLEET SERVICES LIMITED,A0091600,20/01/2022,OPS0322996,12.5,N,,N,N
Pendle Borough Council,Operational Services,Transport Related Expense,Tprt : Repairs : General,3105,GO PLANT FLEET SERVICES LIMITED,A0091600,13/01/2022,OPS0322809,158.3,N,,N,N
Pendle Borough Council,Operational Services,Transport Related Expense,Tyres,3204,GO PLANT FLEET SERVICES LIMITED,A0091600,13/01/2022,OPS0322819,74.82,N,,N,N
Pendle Borough Council,Operational Services,Transport Related Expense,Tyres,3204,GO PLANT FLEET SERVICES LIMITED,A0091600,13/01/2022,OPS0322823,131.68,N,,N,N
Pendle Borough Council,Operational Services,Transport Related Expense,Tyres,3204,GO PLANT FLEET SERVICES LIMITED,A0091600,13/01/2022,OPS0322822,49.79,N,,N,N
Pendle Borough Council,Operational Services,Transport Related Expense,Tyres,3204,GO PLANT FLEET SERVICES LIMITED,A0091600,13/01/2022,OPS0322811,72.43,N,,N,N
Pendle Borough Council,Operational Services,Transport Related Expense,Tyres,3204,GO PLANT FLEET SERVICES LIMITED,A0091600,13/01/2022,OPS0322817,35.32,N,,N,N
Pendle Borough Council,Operational Services,Transport Related Expense,Tyres,3204,GO PLANT FLEET SERVICES LIMITED,A0091600,13/01/2022,OPS0322818,35.32,N,,N,N
Pendle Borough Council,Operational Services,Transport Related Expense,Tprt : Annual Hire Charge,3601,GO PLANT FLEET SERVICES LIMITED,A0091600,13/01/2022,OPS0322828,20,N,,N,N
Pendle Borough Council,Operational Services,Transport Related Expense,Tprt : Annual Hire Charge,3601,GO PLANT FLEET SERVICES LIMITED,A0091600,06/01/2022,OPS0322752,3540.62,N,,N,N
Pendle Borough Council,Operational Services,Transport Related Expense,Tprt : Annual Hire Charge,3601,GO PLANT FLEET SERVICES LIMITED,A0091600,06/01/2022,OPS0322752,3540.62,N,,N,N
Pendle Borough Council,Operational Services,Transport Related Expense,Tprt : Annual Hire Charge,3601,GO PLANT FLEET SERVICES LIMITED,A0091600,06/01/2022,OPS0322752,3540.62,N,,N,N
Pendle Borough Council,Operational Services,Transport Related Expense,Tprt : Annual Hire Charge,3601,GO PLANT FLEET SERVICES LIMITED,A0091600,06/01/2022,OPS0322752,3540.62,N,,N,N
Pendle Borough Council,Operational Services,Transport Related Expense,Tprt : Annual Hire Charge,3601,GO PLANT FLEET SERVICES LIMITED,A0091600,06/01/2022,OPS0322752,3540.62,N,,N,N
Pendle Borough Council,Operational Services,Transport Related Expense,Tprt : Annual Hire Charge,3601,GO PLANT FLEET SERVICES LIMITED,A0091600,06/01/2022,OPS0322752,3344.64,N,,N,N
Pendle Borough Council,Operational Services,Transport Related Expense,Tprt : Annual Hire Charge,3601,GO PLANT FLEET SERVICES LIMITED,A0091600,13/01/2022,OPS0322807,100,N,,N,N
Pendle Borough Council,Operational Services,Transport Related Expense,Tprt : Annual Hire Charge,3601,GO PLANT FLEET SERVICES LIMITED,A0091600,06/01/2022,OPS0322752,3540.62,N,,N,N
Pendle Borough Council,Operational Services,Transport Related Expense,Tprt : Annual Hire Charge,3601,GO PLANT FLEET SERVICES LIMITED,A0091600,06/01/2022,OPS0322752,3540.62,N,,N,N
Pendle Borough Council,Operational Services,Transport Related Expense,Tprt : Annual Hire Charge,3601,GO PLANT FLEET SERVICES LIMITED,A0091600,06/01/2022,OPS0322752,3549.74,N,,N,N
Pendle Borough Council,Operational Services,Transport Related Expense,Tprt : Annual Hire Charge,3601,GO PLANT FLEET SERVICES LIMITED,A0091600,06/01/2022,OPS0322752,3549.74,N,,N,N
Pendle Borough Council,Operational Services,Transport Related Expense,Tprt : Annual Hire Charge,3601,GO PLANT FLEET SERVICES LIMITED,A0091600,06/01/2022,OPS0322752,3549.74,N,,N,N
Pendle Borough Council,Operational Services,Transport Related Expense,Tprt : Annual Hire Charge,3601,GO PLANT FLEET SERVICES LIMITED,A0091600,06/01/2022,OPS0322752,3497.07,N,,N,N
Pendle Borough Council,Operational Services,Transport Related Expense,Tprt : Annual Hire Charge,3601,GO PLANT FLEET SERVICES LIMITED,A0091600,06/01/2022,OPS0322752,3393,N,,N,N
Pendle Borough Council,Operational Services,Transport Related Expense,Tprt : Annual Hire Charge,3601,GO PLANT FLEET SERVICES LIMITED,A0091600,06/01/2022,OPS0322752,2654.17,N,,N,N
Pendle Borough Council,Operational Services,Transport Related Expense,Tprt : Annual Hire Charge,3601,GO PLANT FLEET SERVICES LIMITED,A0091600,06/01/2022,OPS0322752,1981.53,N,,N,N
Pendle Borough Council,Operational Services,Transport Related Expense,Tprt : Annual Hire Charge,3601,GO PLANT FLEET SERVICES LIMITED,A0091600,06/01/2022,OPS0322752,1981.53,N,,N,N
Pendle Borough Council,Operational Services,Transport Related Expense,Tprt : Annual Hire Charge,3601,GO PLANT FLEET SERVICES LIMITED,A0091600,06/01/2022,OPS0322752,1981.53,N,,N,N
Pendle Borough Council,Operational Services,Transport Related Expense,Tprt : Annual Hire Charge,3601,GO PLANT FLEET SERVICES LIMITED,A0091600,06/01/2022,OPS0322752,1981.53,N,,N,N
Pendle Borough Council,Operational Services,Transport Related Expense,Tprt : Annual Hire Charge,3601,GO PLANT FLEET SERVICES LIMITED,A0091600,06/01/2022,OPS0322752,1981.53,N,,N,N
Pendle Borough Council,Operational Services,Transport Related Expense,Tprt : Annual Hire Charge,3601,GO PLANT FLEET SERVICES LIMITED,A0091600,06/01/2022,OPS0322752,509.54,N,,N,N
Pendle Borough Council,Operational Services,Transport Related Expense,Tprt : Annual Hire Charge,3601,GO PLANT FLEET SERVICES LIMITED,A0091600,06/01/2022,OPS0322752,509.54,N,,N,N
Pendle Borough Council,Operational Services,Transport Related Expense,Tprt : Annual Hire Charge,3601,GO PLANT FLEET SERVICES LIMITED,A0091600,06/01/2022,OPS0322752,598.81,N,,N,N
Pendle Borough Council,Operational Services,Transport Related Expense,Tprt : Annual Hire Charge,3601,GO PLANT FLEET SERVICES LIMITED,A0091600,06/01/2022,OPS0322752,650,N,,N,N
Pendle Borough Council,Operational Services,Transport Related Expense,Tprt : Annual Hire Charge,3601,GO PLANT FLEET SERVICES LIMITED,A0091600,06/01/2022,OPS0322752,598.81,N,,N,N
Pendle Borough Council,Operational Services,Transport Related Expense,Tprt : Annual Hire Charge,3601,GO PLANT FLEET SERVICES LIMITED,A0091600,06/01/2022,OPS0322752,598.81,N,,N,N
Pendle Borough Council,Operational Services,Transport Related Expense,Tprt : Annual Hire Charge,3601,GO PLANT FLEET SERVICES LIMITED,A0091600,06/01/2022,OPS0322752,650,N,,N,N
Pendle Borough Council,Operational Services,Transport Related Expense,Tprt : Annual Hire Charge,3601,GO PLANT FLEET SERVICES LIMITED,A0091600,06/01/2022,OPS0322752,598.81,N,,N,N
Pendle Borough Council,Operational Services,Transport Related Expense,Tprt : Annual Hire Charge,3601,GO PLANT FLEET SERVICES LIMITED,A0091600,06/01/2022,OPS0322752,239.53,N,,N,N
Pendle Borough Council,Operational Services,Transport Related Expense,Tprt : Annual Hire Charge,3601,GO PLANT FLEET SERVICES LIMITED,A0091600,06/01/2022,OPS0322752,239.53,N,,N,N
Pendle Borough Council,Operational Services,Transport Related Expense,Tprt : Annual Hire Charge,3601,GO PLANT FLEET SERVICES LIMITED,A0091600,06/01/2022,OPS0322752,239.53,N,,N,N
Pendle Borough Council,Operational Services,Transport Related Expense,Tprt : Annual Hire Charge,3601,GO PLANT FLEET SERVICES LIMITED,A0091600,06/01/2022,OPS0322752,239.53,N,,N,N
Pendle Borough Council,Operational Services,Transport Related Expense,Tprt : Annual Hire Charge,3601,GO PLANT FLEET SERVICES LIMITED,A0091600,06/01/2022,OPS0322752,239.53,N,,N,N
Pendle Borough Council,Operational Services,Transport Related Expense,Tprt : Annual Hire Charge,3601,GO PLANT FLEET SERVICES LIMITED,A0091600,06/01/2022,OPS0322752,239.53,N,,N,N
Pendle Borough Council,Operational Services,Transport Related Expense,Tprt : Annual Hire Charge,3601,GO PLANT FLEET SERVICES LIMITED,A0091600,06/01/2022,OPS0322752,239.53,N,,N,N
Pendle Borough Council,Operational Services,Transport Related Expense,Tprt : Annual Hire Charge,3601,GO PLANT FLEET SERVICES LIMITED,A0091600,06/01/2022,OPS0322752,339.69,N,,N,N
Pendle Borough Council,Operational Services,Transport Related Expense,Tprt : Annual Hire Charge,3601,GO PLANT FLEET SERVICES LIMITED,A0091600,06/01/2022,OPS0322752,592.28,N,,N,N
Pendle Borough Council,Operational Services,Transport Related Expense,Tprt : Annual Hire Charge,3601,GO PLANT FLEET SERVICES LIMITED,A0091600,06/01/2022,OPS0322752,592.28,N,,N,N
Pendle Borough Council,Operational Services,Transport Related Expense,Tprt : Annual Hire Charge,3601,GO PLANT FLEET SERVICES LIMITED,A0091600,06/01/2022,OPS0322752,592.28,N,,N,N
Pendle Borough Council,Operational Services,Transport Related Expense,Tprt : Annual Hire Charge,3601,GO PLANT FLEET SERVICES LIMITED,A0091600,06/01/2022,OPS0322752,592.28,N,,N,N
Pendle Borough Council,Operational Services,Transport Related Expense,Tprt : Annual Hire Charge,3601,GO PLANT FLEET SERVICES LIMITED,A0091600,06/01/2022,OPS0322752,592.28,N,,N,N
Pendle Borough Council,Operational Services,Transport Related Expense,Tprt : Annual Hire Charge,3601,GO PLANT FLEET SERVICES LIMITED,A0091600,06/01/2022,OPS0322752,535.67,N,,N,N
Pendle Borough Council,Operational Services,Transport Related Expense,Tprt : Annual Hire Charge,3601,GO PLANT FLEET SERVICES LIMITED,A0091600,06/01/2022,OPS0322752,239.53,N,,N,N
Pendle Borough Council,Operational Services,Transport Related Expense,Tprt : Annual Hire Charge,3601,GO PLANT FLEET SERVICES LIMITED,A0091600,06/01/2022,OPS0322752,496.4,N,,N,N
Pendle Borough Council,Operational Services,Transport Related Expense,Tprt : Annual Hire Charge,3601,GO PLANT FLEET SERVICES LIMITED,A0091600,06/01/2022,OPS0322752,496.4,N,,N,N
Pendle Borough Council,Engineering & Special Projects,Supplies and Services,Grant Funding,4737,COLNE PARISH CHURCH ST BARTHOLOMEW,A0091630,06/01/2022,HED0322789,7500,N,,N,N
Pendle Borough Council,Parks & Recreation Services,Capital Costs,Capital : Payments,CD14,A&G LANDSCAPES & GROUNDWORKS LIMITED,A0091675,27/01/2022,PCO0323137,1250,N,,N,250
Pendle Borough Council,Parks & Recreation Services,Capital Costs,Capital : Payments,CD14,A&G LANDSCAPES & GROUNDWORKS LIMITED,A0091675,27/01/2022,PCO0323137,3722,N,,N,N
Pendle Borough Council,Engineering & Special Projects,Capital Costs,Ren Grant : 1996 Act,CH22,BRYAN LEE BUILDING CONTRACTORS LIMITED,A0091749,20/01/2022,HED0322986,5497.37,N,,N,N
Pendle Borough Council,Engineering & Special Projects,Agency Staff,Emp : Salaries & Wages,1020,THE OYSTER PARTNERSHIP LIMITED,A0091781,27/01/2022,HED0323170,794.8,N,,N,N
Pendle Borough Council,Engineering & Special Projects,Agency Staff,Emp : Salaries & Wages,1020,THE OYSTER PARTNERSHIP LIMITED,A0091781,27/01/2022,HED0323167,958.08,N,,N,N
Pendle Borough Council,Engineering & Special Projects,Agency Staff,Emp : Salaries & Wages,1020,THE OYSTER PARTNERSHIP LIMITED,A0091781,20/01/2022,HED0323053,963,N,,N,N
Pendle Borough Council,Engineering & Special Projects,Agency Staff,Emp : Salaries & Wages,1020,THE OYSTER PARTNERSHIP LIMITED,A0091781,20/01/2022,HED0323004,1075,N,,N,N
Pendle Borough Council,Engineering & Special Projects,Agency Staff,Emp : Salaries & Wages,1020,THE OYSTER PARTNERSHIP LIMITED,A0091781,20/01/2022,HED0323055,1098.07,N,,N,N
Pendle Borough Council,Engineering & Special Projects,Agency Staff,Emp : Salaries & Wages,1020,THE OYSTER PARTNERSHIP LIMITED,A0091781,27/01/2022,HED0323166,1178.1,N,,N,N
Pendle Borough Council,Engineering & Special Projects,Agency Staff,Emp : Salaries & Wages,1020,THE OYSTER PARTNERSHIP LIMITED,A0091781,13/01/2022,HED0322852,1397.5,N,,N,N
Pendle Borough Council,Engineering & Special Projects,Agency Staff,Emp : Salaries & Wages,1020,THE OYSTER PARTNERSHIP LIMITED,A0091781,13/01/2022,HED0322853,1408.65,N,,N,N
Pendle Borough Council,Engineering & Special Projects,Agency Staff,Emp : Salaries & Wages,1020,THE OYSTER PARTNERSHIP LIMITED,A0091781,13/01/2022,HED0322851,1440.5,N,,N,N
Pendle Borough Council,Engineering & Special Projects,Agency Staff,Emp : Salaries & Wages,1020,THE OYSTER PARTNERSHIP LIMITED,A0091781,20/01/2022,HED0323002,1472.75,N,,N,N
Pendle Borough Council,Engineering & Special Projects,Agency Staff,Emp : Salaries & Wages,1020,THE OYSTER PARTNERSHIP LIMITED,A0091781,20/01/2022,HED0323054,1472.75,N,,N,N
Pendle Borough Council,Engineering & Special Projects,Agency Staff,Emp : Salaries & Wages,1020,THE OYSTER PARTNERSHIP LIMITED,A0091781,20/01/2022,HED0323005,1555.31,N,,N,N
Pendle Borough Council,Engineering & Special Projects,Agency Staff,Emp : Salaries & Wages,1020,THE OYSTER PARTNERSHIP LIMITED,A0091781,20/01/2022,HED0323008,1565.34,N,,N,N
Pendle Borough Council,Engineering & Special Projects,Agency Staff,Emp : Salaries & Wages,1020,THE OYSTER PARTNERSHIP LIMITED,A0091781,27/01/2022,HED0323169,1566.06,N,,N,N
Pendle Borough Council,Engineering & Special Projects,Agency Staff,Emp : Salaries & Wages,1020,THE OYSTER PARTNERSHIP LIMITED,A0091781,27/01/2022,HED0323168,1572.94,N,,N,N
Pendle Borough Council,Engineering & Special Projects,Agency Staff,Emp : Salaries & Wages,1020,THE OYSTER PARTNERSHIP LIMITED,A0091781,20/01/2022,HED0323007,1585.04,N,,N,N
Pendle Borough Council,Engineering & Special Projects,Agency Staff,Emp : Salaries & Wages,1020,THE OYSTER PARTNERSHIP LIMITED,A0091781,20/01/2022,HED0323006,1592.24,N,,N,N
Pendle Borough Council,Engineering & Special Projects,Agency Staff,Emp : Salaries & Wages,1020,THE OYSTER PARTNERSHIP LIMITED,A0091781,20/01/2022,HED0323003,1596.24,N,,N,N
Pendle Borough Council,Engineering & Special Projects,Agency Staff,Emp : Salaries & Wages,1020,THE OYSTER PARTNERSHIP LIMITED,A0091781,20/01/2022,HED0323056,1619.81,N,,N,N
Pendle Borough Council,Engineering & Special Projects,Agency Staff,Emp : Salaries & Wages,1020,G2 RECRUITMENT SOLUTIONS,A0091827,13/01/2022,HED0322850,1295,N,,N,N
Pendle Borough Council,Engineering & Special Projects,Agency Staff,Emp : Salaries & Wages,1020,G2 RECRUITMENT SOLUTIONS,A0091827,20/01/2022,HED0323009,1295,N,,N,N
Pendle Borough Council,Engineering & Special Projects,Agency Staff,Emp : Salaries & Wages,1020,G2 RECRUITMENT SOLUTIONS,A0091827,27/01/2022,HED0323118,1295,N,,N,N
Pendle Borough Council,Engineering & Special Projects,Agency Staff,Emp : Salaries & Wages,1020,G2 RECRUITMENT SOLUTIONS,A0091827,13/01/2022,HED0322849,3885,N,,N,N
Pendle Borough Council,Engineering & Special Projects,Supplies and Services,Consultants Fees,4401,G2 RECRUITMENT SOLUTIONS,A0091827,27/01/2022,HED0323119,1061,N,,N,N
Pendle Borough Council,Human Resources,Supplies and Services,Consultants Fees,4401,G2 RECRUITMENT SOLUTIONS,A0091827,06/01/2022,PER0322745,2221.85,N,,N,N
Pendle Borough Council,Engineering & Special Projects,Supplies and Services,Consultants Fees,4401,MR SIMON WHITFIELD,A0091841,13/01/2022,HED0322942,2550,N,,N,N
Pendle Borough Council,Operational Services,Supplies and Services,EFM : Other Equipment,4003,DEFIB STORE LIMITED,A0091871,13/01/2022,OPS0322864,105,N,,N,N
Pendle Borough Council,Engineering & Special Projects,Supplies and Services,Consultants Fees,4401,CUSHMAN & WAKEFIELD DEBENHAM TIE LEUNG LTD,A0091938,06/01/2022,HED0322755,5874,N,,N,N
Pendle Borough Council,Engineering & Special Projects,Capital Costs,Ren Grant : 1996 Act,CH22,DYNAMIC PLUMBING AND HEATING,A0091941,13/01/2022,HED0322845,10528,N,,N,N
Pendle Borough Council,Engineering & Special Projects,Supplies and Services,Grant Funding,4737,PENDLE FOOD FOR ALL FOOD CLUB,A0091966,06/01/2022,HED0322794,7500,N,,N,N
Pendle Borough Council,Operational Services,Supplies and Services,EFM Materials,4004,SMI GROUP UK,A0091999,27/01/2022,OPS0323182,62.94,N,,N,N
Pendle Borough Council,Operational Services,Supplies and Services,EFM Materials,4004,SMI GROUP UK,A0091999,27/01/2022,OPS0323182,88.12,N,,N,N
Pendle Borough Council,Parks & Recreation Services,Supplies and Services,Protective Clothing,4201,SMI GROUP UK,A0091999,27/01/2022,PCO0323156,27.03,N,,N,N
Pendle Borough Council,Parks & Recreation Services,Supplies and Services,Protective Clothing,4201,SMI GROUP UK,A0091999,13/01/2022,PCO0322872,30.54,N,,N,N
Pendle Borough Council,Parks & Recreation Services,Supplies and Services,Protective Clothing,4201,SMI GROUP UK,A0091999,13/01/2022,PCO0322872,96.6,N,,N,N
Pendle Borough Council,Operational Services,,Stock : Purchases,PJ01,SMI GROUP UK,A0091999,13/01/2022,OPS0322834,33,N,,N,N
Pendle Borough Council,Operational Services,,Stock : Purchases,PJ01,SMI GROUP UK,A0091999,20/01/2022,OPS0322994,75.12,N,,N,N
Pendle Borough Council,Operational Services,,Stock : Purchases,PJ01,SMI GROUP UK,A0091999,20/01/2022,OPS0322994,75.12,N,,N,N
Pendle Borough Council,Operational Services,,Stock : Purchases,PJ01,SMI GROUP UK,A0091999,27/01/2022,OPS0323183,140.3,N,,N,N
Pendle Borough Council,Engineering & Special Projects,Supplies and Services,Children`s holiday activities,4716,THE LIGHTBEAM ACADEMY LTD,A0092431,06/01/2022,HED0322783,450,N,,N,N
Pendle Borough Council,Engineering & Special Projects,Supplies and Services,Mayoral Expenses,4614,GOING DUTCH FLORIST,A0092606,13/01/2022,HED0322847,12.5,N,,N,N
Pendle Borough Council,Engineering & Special Projects,Supplies and Services,EFM : Other Equipment,4003,PELSIS LIMITED,A0093853,27/01/2022,HED0323120,149.4,N,,N,N
Pendle Borough Council,Parks & Recreation Services,Premises Related Expense,Grounds : R & M : Day to Day : Routine,2101,AMAZON PAYMENTS UK LIMITED,A0093876,27/01/2022,PCO0323187,180.97,N,,N,N
Pendle Borough Council,Operational Services,Supplies and Services,EFM Materials,4004,AMAZON PAYMENTS UK LIMITED,A0093876,06/01/2022,OPS0322467,22.35,N,,N,N
Pendle Borough Council,Operational Services,Supplies and Services,EFM Materials,4004,AMAZON PAYMENTS UK LIMITED,A0093876,20/01/2022,OPS0322995,65.7,N,,N,N
Pendle Borough Council,Engineering & Special Projects,Capital Costs,Capital : Payments,CD14,REDACT - PERSONAL DATA,A0093884,27/01/2022,HED0323162,1025,N,,N,N
Pendle Borough Council,Engineering & Special Projects,Capital Costs,Capital : Payments,CD14,REDACT - PERSONAL DATA,A0093884,27/01/2022,HED0323163,1260,N,,N,N
Pendle Borough Council,Parks & Recreation Services,Supplies and Services,Expenditure : Materials,0002,TURFIX PITCH SOLUTIONS,A0094206,13/01/2022,PCO0322873,300,N,,N,N
Pendle Borough Council,Parks & Recreation Services,Premises Related Expense,Grounds : R & M : Day to Day : Routine,2101,TURFIX PITCH SOLUTIONS,A0094206,27/01/2022,PCO0323186,350,N,,N,N
Pendle Borough Council,Engineering & Special Projects,Capital Costs,Capital : Payments,CD14,APTUS UTILITIES LIMITED,A0094260,13/01/2022,HED0322882,4600,N,,N,N
Pendle Borough Council,Engineering & Special Projects,Capital Costs,Capital : Payments,CD14,APTUS UTILITIES LIMITED,A0094260,06/01/2022,HED0322754,5520,N,,N,N
Pendle Borough Council,Engineering & Special Projects,Capital Costs,Capital : Payments,CD14,APTUS UTILITIES LIMITED,A0094260,06/01/2022,HED0322753,58508.12,N,,N,N
Pendle Borough Council,Revenues Services,Supplies and Services,Consultants Fees,4401,MARSTON (HOLDINGS) LIMITED,A0094273,13/01/2022,TRE0322952,10.8,N,,N,N
Pendle Borough Council,Revenues Services,Supplies and Services,Consultants Fees,4401,MARSTON (HOLDINGS) LIMITED,A0094273,13/01/2022,TRE0322953,25.2,N,,N,N
Pendle Borough Council,Revenues Services,Supplies and Services,Consultants Fees,4401,MARSTON (HOLDINGS) LIMITED,A0094273,13/01/2022,TRE0322951,45.25,N,,N,N
Pendle Borough Council,Revenues Services,Supplies and Services,Consultants Fees,4401,MARSTON (HOLDINGS) LIMITED,A0094273,13/01/2022,TRE0322950,100.26,N,,N,N
Pendle Borough Council,Engineering & Special Projects,Supplies and Services,Consultants Fees,4401,HATCH ASSOCIATES LMITED,A0094291,27/01/2022,HED0323159,8550,N,,N,N
Pendle Borough Council,Engineering & Special Projects,Supplies and Services,Consultants Fees,4401,HATCH ASSOCIATES LMITED,A0094291,13/01/2022,HED0322884,16329,N,,N,N
Pendle Borough Council,Information Services,Supplies and Services,Printing & Stationery,4301,COMPLETE IT SYSTEMS LIMITED,A0094309,27/01/2022,ITS0323127,170,N,,N,N
Pendle Borough Council,Information Services,Capital Costs,Capital : Payments,cd14,COMPLETE IT SYSTEMS LIMITED,A0094309,27/01/2022,ITS0323125,6,N,,N,N
Pendle Borough Council,Information Services,Capital Costs,Capital : Payments,cd14,COMPLETE IT SYSTEMS LIMITED,A0094309,27/01/2022,ITS0323125,16,N,,N,N
Pendle Borough Council,Information Services,Capital Costs,Capital : Payments,cd14,COMPLETE IT SYSTEMS LIMITED,A0094309,27/01/2022,ITS0323125,20,N,,N,N
Pendle Borough Council,Information Services,Capital Costs,Capital : Payments,cd14,COMPLETE IT SYSTEMS LIMITED,A0094309,27/01/2022,ITS0323125,52,N,,N,N
Pendle Borough Council,Engineering & Special Projects,Supplies and Services,Other Expenses,4705,EUROLOOS LIMITED,A0094490,27/01/2022,HED0323117,221.44,N,,N,N
Pendle Borough Council,Engineering & Special Projects,Supplies and Services,Other Expenses,4705,EUROLOOS LIMITED,A0094490,27/01/2022,HED0323114,332.13,N,,N,N
Pendle Borough Council,Engineering & Special Projects,Supplies and Services,Other Expenses,4705,EUROLOOS LIMITED,A0094490,27/01/2022,HED0323115,332.13,N,,N,N
Pendle Borough Council,Engineering & Special Projects,Supplies and Services,Other Expenses,4705,EUROLOOS LIMITED,A0094490,27/01/2022,HED0323116,332.13,N,,N,N
Pendle Borough Council,Financial Services,Supplies and Services,Grant Funding,4737,WEST CRAVEN TOGETHER THE RAINHALL CENTRE,A0094535,14/01/2022,AAS0322963,10000,N,,N,N
Pendle Borough Council,Financial Services,Supplies and Services,Grant Funding,4737,JON HOYLE,A0095201,28/01/2022,AAS0323201,40000,N,,N,N
Pendle Borough Council,Human Resources,Indirect Employee Expenses,Recruitment,1221,HB EDITORIAL SERVICES LIMITED,A0095242,27/01/2022,PER0323075,495,N,,N,N
Pendle Borough Council,Financial Services,Supplies and Services,Consultants Fees,4401,ALLEN LANE INTERIM & PERMANENT RECRUITMENT,A0095243,06/01/2022,AAS0322798,595.23,N,,N,N
Pendle Borough Council,Financial Services,Supplies and Services,Consultants Fees,4401,ALLEN LANE INTERIM & PERMANENT RECRUITMENT,A0095243,06/01/2022,AAS0322797,2380.92,N,,N,N
Pendle Borough Council,Engineering & Special Projects,Supplies and Services,Grant Funding,4737,NELSON COMMUNITY MOSQUE,A0095733,06/01/2022,HED0322795,7500,N,,N,N
Pendle Borough Council,Engineering & Special Projects,Supplies and Services,Other Expenses,4705,COLNE YOUTH ACTION GROUP,A0096017,13/01/2022,HED0322858,1000,N,,N,N
Pendle Borough Council,Engineering & Special Projects,Supplies and Services,Children`s holiday activities,4716,COLNE YOUTH ACTION GROUP,A0096017,13/01/2022,HED0322940,174,N,,N,N
Pendle Borough Council,Human Resources,Supplies and Services,Seminars etc All Costs,4601,INSTEP UK LTD,A0096267,27/01/2022,PER0323076,15.38,N,,N,N
Pendle Borough Council,Engineering & Special Projects,Supplies and Services,Children`s holiday activities,4716,COMMUNITY ARTS BY ZK,A0096410,06/01/2022,HED0322782,3115,N,,N,N
Pendle Borough Council,Engineering & Special Projects,Supplies and Services,Children`s holiday activities,4716,FUNDA,A0096411,13/01/2022,HED0322865,3000,N,,N,N
Pendle Borough Council,Engineering & Special Projects,Supplies and Services,Children`s holiday activities,4716,HARRINGTONS LEARNING CENTRE,A0096412,27/01/2022,HED0323123,604.3,N,,N,N
Pendle Borough Council,Engineering & Special Projects,Supplies and Services,Children`s holiday activities,4716,STAGE DOOR,A0096413,06/01/2022,HED0322785,162.05,N,,N,N
Pendle Borough Council,Engineering & Special Projects,Supplies and Services,Children`s holiday activities,4716,STAGE DOOR,A0096413,06/01/2022,HED0322784,1458.45,N,,N,N
Pendle Borough Council,Engineering & Special Projects,Transfer Payments,Accommodation ,6103,REGENT GUEST HOUSE,A0096417,20/01/2022,HED0322975,300,N,,N,N
Pendle Borough Council,Engineering & Special Projects,Transfer Payments,Accommodation ,6103,REGENT GUEST HOUSE,A0096417,06/01/2022,HED0322734,420,N,,N,N
Pendle Borough Council,Engineering & Special Projects,Transfer Payments,Accommodation ,6103,REGENT GUEST HOUSE,A0096417,20/01/2022,HED0322974,960,N,,N,N
Pendle Borough Council,Property Services,Premises Related Expense,Gas,2202,E.ON NEXT ENERGY LIMITED,A0096428,20/01/2022,EST0323031,11.41,N,,N,N
Pendle Borough Council,Property Services,Premises Related Expense,Electricity,2203,E.ON NEXT ENERGY LIMITED,A0096428,13/01/2022,EST0322907,4.76,N,,N,N
Pendle Borough Council,Property Services,Premises Related Expense,Electricity,2203,E.ON NEXT ENERGY LIMITED,A0096428,13/01/2022,EST0322906,6.72,N,,N,N
Pendle Borough Council,Property Services,Premises Related Expense,Electricity,2203,E.ON NEXT ENERGY LIMITED,A0096428,13/01/2022,EST0322921,21.47,N,,N,N
Pendle Borough Council,Property Services,Premises Related Expense,Electricity,2203,E.ON NEXT ENERGY LIMITED,A0096428,13/01/2022,EST0322920,57.36,N,,N,N
Pendle Borough Council,Property Services,Premises Related Expense,Electricity,2203,E.ON NEXT ENERGY LIMITED,A0096428,13/01/2022,EST0322910,4.79,N,,N,N
Pendle Borough Council,Property Services,Premises Related Expense,Electricity,2203,E.ON NEXT ENERGY LIMITED,A0096428,20/01/2022,EST0323032,6.32,N,,N,N
Pendle Borough Council,Property Services,Premises Related Expense,Electricity,2203,E.ON NEXT ENERGY LIMITED,A0096428,13/01/2022,EST0322896,22.86,N,,N,N
Pendle Borough Council,Property Services,Premises Related Expense,Electricity,2203,E.ON NEXT ENERGY LIMITED,A0096428,13/01/2022,EST0322922,0.02,N,,N,N
Pendle Borough Council,Property Services,Premises Related Expense,Electricity,2203,E.ON NEXT ENERGY LIMITED,A0096428,13/01/2022,EST0322899,3.64,N,,N,N
Pendle Borough Council,Property Services,Premises Related Expense,Electricity,2203,E.ON NEXT ENERGY LIMITED,A0096428,20/01/2022,EST0323023,3.64,N,,N,N
Pendle Borough Council,Property Services,Premises Related Expense,Electricity,2203,E.ON NEXT ENERGY LIMITED,A0096428,13/01/2022,EST0322897,3.88,N,,N,N
Pendle Borough Council,Property Services,Premises Related Expense,Electricity,2203,E.ON NEXT ENERGY LIMITED,A0096428,20/01/2022,EST0323027,3.92,N,,N,N
Pendle Borough Council,Property Services,Premises Related Expense,Electricity,2203,E.ON NEXT ENERGY LIMITED,A0096428,13/01/2022,EST0322918,4,N,,N,N
Pendle Borough Council,Property Services,Premises Related Expense,Electricity,2203,E.ON NEXT ENERGY LIMITED,A0096428,13/01/2022,EST0322929,4.07,N,,N,N
Pendle Borough Council,Property Services,Premises Related Expense,Electricity,2203,E.ON NEXT ENERGY LIMITED,A0096428,13/01/2022,EST0322923,4.32,N,,N,N
Pendle Borough Council,Property Services,Premises Related Expense,Electricity,2203,E.ON NEXT ENERGY LIMITED,A0096428,13/01/2022,EST0322914,4.34,N,,N,N
Pendle Borough Council,Property Services,Premises Related Expense,Electricity,2203,E.ON NEXT ENERGY LIMITED,A0096428,13/01/2022,EST0322915,4.34,N,,N,N
Pendle Borough Council,Property Services,Premises Related Expense,Electricity,2203,E.ON NEXT ENERGY LIMITED,A0096428,13/01/2022,EST0322913,4.35,N,,N,N
Pendle Borough Council,Property Services,Premises Related Expense,Electricity,2203,E.ON NEXT ENERGY LIMITED,A0096428,13/01/2022,EST0322945,4.37,N,,N,N
Pendle Borough Council,Property Services,Premises Related Expense,Electricity,2203,E.ON NEXT ENERGY LIMITED,A0096428,20/01/2022,EST0323030,4.37,N,,N,N
Pendle Borough Council,Property Services,Premises Related Expense,Electricity,2203,E.ON NEXT ENERGY LIMITED,A0096428,13/01/2022,EST0322905,4.38,N,,N,N
Pendle Borough Council,Property Services,Premises Related Expense,Electricity,2203,E.ON NEXT ENERGY LIMITED,A0096428,13/01/2022,EST0322919,4.53,N,,N,N
Pendle Borough Council,Property Services,Premises Related Expense,Electricity,2203,E.ON NEXT ENERGY LIMITED,A0096428,13/01/2022,EST0322917,4.83,N,,N,N
Pendle Borough Council,Property Services,Premises Related Expense,Electricity,2203,E.ON NEXT ENERGY LIMITED,A0096428,20/01/2022,EST0323024,4.9,N,,N,N
Pendle Borough Council,Property Services,Premises Related Expense,Electricity,2203,E.ON NEXT ENERGY LIMITED,A0096428,20/01/2022,EST0323025,5.04,N,,N,N
Pendle Borough Council,Property Services,Premises Related Expense,Electricity,2203,E.ON NEXT ENERGY LIMITED,A0096428,20/01/2022,EST0323026,5.04,N,,N,N
Pendle Borough Council,Property Services,Premises Related Expense,Electricity,2203,E.ON NEXT ENERGY LIMITED,A0096428,13/01/2022,EST0322898,5.63,N,,N,N
Pendle Borough Council,Property Services,Premises Related Expense,Electricity,2203,E.ON NEXT ENERGY LIMITED,A0096428,13/01/2022,EST0322916,7.55,N,,N,N
Pendle Borough Council,Property Services,Premises Related Expense,Electricity,2203,E.ON NEXT ENERGY LIMITED,A0096428,13/01/2022,EST0322911,8.39,N,,N,N
Pendle Borough Council,Property Services,Premises Related Expense,Electricity,2203,E.ON NEXT ENERGY LIMITED,A0096428,13/01/2022,EST0322908,10.36,N,,N,N
Pendle Borough Council,Property Services,Premises Related Expense,Electricity,2203,E.ON NEXT ENERGY LIMITED,A0096428,13/01/2022,EST0322925,12.36,N,,N,N
Pendle Borough Council,Property Services,Premises Related Expense,Electricity,2203,E.ON NEXT ENERGY LIMITED,A0096428,13/01/2022,EST0322909,13.34,N,,N,N
Pendle Borough Council,Property Services,Premises Related Expense,Electricity,2203,E.ON NEXT ENERGY LIMITED,A0096428,13/01/2022,EST0322912,19.37,N,,N,N
Pendle Borough Council,Property Services,Premises Related Expense,Electricity,2203,E.ON NEXT ENERGY LIMITED,A0096428,13/01/2022,EST0322924,25.9,N,,N,N
Pendle Borough Council,Property Services,Premises Related Expense,Electricity,2203,E.ON NEXT ENERGY LIMITED,A0096428,20/01/2022,EST0323022,39.27,N,,N,N
Pendle Borough Council,Engineering & Special Projects,Supplies and Services,Children`s holiday activities,4716,SPORTSCOOL LTD,A0096429,27/01/2022,HED0323122,4240,N,,N,N
Pendle Borough Council,Planning & Building Control,Supplies and Services,Other Expenses,4705,PROPER VIDEO LTD,A0096488,13/01/2022,PBC0322957,1050,N,,N,N
Pendle Borough Council,Parks & Recreation Services,Premises Related Expense,Grounds : R & M : Day to Day : Routine,2101,JCB PRICE & SON LTD,A0096491,27/01/2022,PCO0323196,530,N,,N,N
Pendle Borough Council,Engineering & Special Projects,Supplies and Services,Consultants Fees,4401,EKOSGEN,A0096503,13/01/2022,HED0322885,4000,N,,N,N
Pendle Borough Council,Parks & Recreation Services,Premises Related Expense,Grounds : R & M : Day to Day : Routine,2101,BANNISTER HALL LIMITED,A0096507,27/01/2022,PCO0323193,30,N,,N,N
Pendle Borough Council,Parks & Recreation Services,Premises Related Expense,Grounds : R & M : Day to Day : Routine,2101,BANNISTER HALL LIMITED,A0096507,27/01/2022,PCO0323193,56,N,,N,N
Pendle Borough Council,Parks & Recreation Services,Premises Related Expense,Grounds : R & M : Day to Day : Routine,2101,BANNISTER HALL LIMITED,A0096507,27/01/2022,PCO0323193,75.79,N,,N,N
Pendle Borough Council,Parks & Recreation Services,Premises Related Expense,Grounds : R & M : Day to Day : Routine,2101,BANNISTER HALL LIMITED,A0096507,27/01/2022,PCO0323193,112,N,,N,N
Pendle Borough Council,Parks & Recreation Services,Premises Related Expense,Grounds : R & M : Day to Day : Routine,2101,BANNISTER HALL LIMITED,A0096507,27/01/2022,PCO0323193,195,N,,N,N
Pendle Borough Council,Parks & Recreation Services,Premises Related Expense,Grounds : R & M : Day to Day : Routine,2101,BANNISTER HALL LIMITED,A0096507,27/01/2022,PCO0323193,115,N,,N,N
Pendle Borough Council,Property Services,Premises Related Expense,Gas,2202,YU ENERGY,A0096523,13/01/2022,EST0322927,50,N,,N,N
Pendle Borough Council,Property Services,Premises Related Expense,Gas,2202,YU ENERGY,A0096523,13/01/2022,EST0322927,131.95,N,,N,N
Pendle Borough Council,Property Services,Premises Related Expense,Gas,2202,YU ENERGY,A0096523,06/01/2022,EST0322764,209.4,N,,N,N
Pendle Borough Council,Property Services,,Personnel : Refundable Rental Deposits,B622,REDACT - PERSONAL DATA,A0096524,13/01/2022,EST0322900,685.84,N,,N,N
Pendle Borough Council,Engineering & Special Projects,Capital Costs,Capital : Payments,CD14,PETER CHILTON,A0096525,06/01/2022,HED0322779,1450,N,,N,N
Pendle Borough Council,Engineering & Special Projects,Capital Costs,Capital : Payments,CD14,HN GAS & PLUMBING SERVICE,A0096526,06/01/2022,HED0322778,2150,N,,N,N
Pendle Borough Council,Engineering & Special Projects,Supplies and Services,Grant Funding,4737,CURRY ON THE STREET,A0096527,06/01/2022,HED0322791,7500,N,,N,N
Pendle Borough Council,Financial Services,Supplies and Services,Grant Funding,4737,ANEESA MCGLADDERY,A0096531,18/01/2022,AAS0322964,10000,N,,N,N
Pendle Borough Council,Engineering & Special Projects,Supplies and Services,Children`s holiday activities,4716,STANBURY COTTAGE MEALS SERVICE,A0096533,20/01/2022,HED0323050,132,N,,N,N
Pendle Borough Council,Engineering & Special Projects,Supplies and Services,Children`s holiday activities,4716,STANBURY COTTAGE MEALS SERVICE,A0096533,20/01/2022,HED0323051,208,N,,N,N
Pendle Borough Council,Engineering & Special Projects,Supplies and Services,Children`s holiday activities,4716,STANBURY COTTAGE MEALS SERVICE,A0096533,20/01/2022,HED0323052,600,N,,N,N
Pendle Borough Council,Engineering & Special Projects,Supplies and Services,Children`s holiday activities,4716,STANBURY COTTAGE MEALS SERVICE,A0096533,20/01/2022,HED0323049,776,N,,N,N
Pendle Borough Council,Financial Services,Supplies and Services,Other Expenses,4705,ANTHONY COLLINS SOLICITORS,A0096535,20/01/2022,AAS0323063,4750,N,,N,N
Pendle Borough Council,Planning & Building Control,,Fees Income : Non-VATable,9302,REDACT - PERSONAL DATA,A0096536,20/01/2022,PBC0323065,462,N,,N,N
Pendle Borough Council,Financial Services,Supplies and Services,Grant Funding,4737,CHRIS SMITH,A0096540,28/01/2022,AAS0323198,50000,N,,N,N
Pendle Borough Council,Financial Services,Supplies and Services,Grant Funding,4737,FIONA IMLACH,A0096541,28/01/2022,AAS0323199,38000,N,,N,N
Pendle Borough Council,Financial Services,Supplies and Services,Grant Funding,4737,JUSTINE JONES,A0096542,28/01/2022,AAS0323200,50000,N,,N,N
